{"text_format":"1","workbook":"xlsx","n_sheets":18,"sheets":["Validação de dados","Planilha","icones","Tecnicas e Pop´s","Descrição de Pop´s","Integração","Treinamentos","Geral","hplc","Espectro","Karl fischer","Agua","Titulação","Peso Medio","Validação ","Teor A.","Perfil","Perda S."],"not_rendered":{"charts":0,"images":87,"macros":1,"external_links":0,"defined_names":0,"comments":0,"pivot_tables":0},"unopened":[],"bounds":{"document_bytes":16777216,"sheet_cells":100000,"rows_first":2000,"rows_last":500,"rows_between":2000,"halvings":0,"cell_chars":16384,"cell_head_chars":4096},"cells_cut":0,"cells_raw":0,"read":"whole","date_system":"1900"}

{"sheet":"Validação de dados","index":0,"n_rows":15,"n_cols":4,"rows_kept":15,"cut":false,"hidden":false,"merged":[[2,0,2,1]]}
[]
[]
["Pop´s Geral"]
[]
["POP TEC 002","POP EQ 090",null,"Em Treinamento"]
["POP TEC 003","POP EQ 099",null,"Treinamento Finalizado"]
["POP TEC 010","POP EQ 115"]
["POP TEC 018","xxx"]
["POP TEC 019","xxx"]
["POP TEC 020","xxx"]
["POP TEC 070","xxx"]
["POP TEC 077","xxx"]
["POP TEC 079","xxx"]
["POP TEC 101","xxx"]
[" POP TEC 104                                 ","xxx"]

{"sheet":"Planilha","index":1,"n_rows":0,"n_cols":0,"rows_kept":0,"cut":false,"hidden":false,"merged":[[0,0,4,0],[0,2,4,19]]}

{"sheet":"icones","index":2,"n_rows":14,"n_cols":14,"rows_kept":14,"cut":false,"hidden":false,"merged":[]}
[]
[]
[]
[]
[]
[]
[null,null,null,null,null,null,null,null,null,null,null,null,null,"titulaç;ao"]
[]
[]
[]
[]
[]
[]
[null,null,null,{"$f":"icones!P2=IF(Geral!F14<>\"Trein. Finalizado\",\"Em treinamento\",IF(Geral!H14<>\"Trein. Finalizado\",\"Em treinamento\",IF(Geral!L14<>\"Trein. Finalizado\",\"Em treinamento\",IF(Geral!P14<>\"Trein. Finalizado\",\"Em Treinamento\",IF(Geral!R14<>\"Trein. Finalizado\",\"Em treinamento\",IF(Geral!T14<>\"Trein. Finalizado\",\"Em Treinamento\",IF(Geral!V14<>\"Trein. Finalizado\",\"Em Treinamento\",IF(Geral!X14<>\"Trein. Finalizado\",\"Em Treinamento\",IF(Geral!Z14<>\"Trein. Finalizado\",\"Em treinamento\",IF(Geral!Z14<>\"Trein. Finalizado\",\"Em Treinamento\",IF(Geral!AB14<>\"Trein. Finalizado\",\"Em treinamento\",IF(Geral!AD14<>\"Trein. Finalizado\",\"Em Treinamento\",IF(Geral!AD14<>\"Trein. Finalizado\",\"Em treinamento\",IF(Geral!AF14<>\"Trein. Finalizado\",\"Em treinamento\",IF(Geral!AJ14<>\"Trein. Finalizado\",\"Em Treinamento\",IF(Geral!AL14<>\"Trein. Finalizado\",\"Em treinamento\",\"Apto\"))))))))))))))))","v":false}]

{"sheet":"Tecnicas e Pop´s","index":3,"n_rows":72,"n_cols":13,"rows_kept":72,"cut":false,"hidden":false,"merged":[[0,0,4,0],[43,11,47,11],[50,11,52,11],[0,2,4,53],[55,11,61,11]]}
[]
[]
[]
[]
[]
[]
[]
[]
[]
[]
[]
[]
[]
[]
[]
[null,null,null,null,null,null,null,null,null,null,null,"POP TEC 001","POP EQ 017"]
[null,null,null,"                                Manual do Sistema de Gestão da Qualidade",null,null,null,null,null,null,null,"POP TEC 065","xxx"]
[null,null,null,"                                Manual do laboratorio"]
[null,null,null,null,null,"PRO 01 Controle de Documentos e Registros"]
[null,null,null,null,null,"PRO 02  Recursos Humanos"]
[null,null,null,null,null,"PRO 03 Manutenção e Infraestrutura"]
[null,null,null,null,null,"PRO 04 Vendas"]
[null,null,null,null,null,"PRO 05 Aquisição",null,null,null,null,null,"POP TEC 001","POP EQ 001"]
[null,null,null,null,null,"PRO 06 Ensaio de Amostras",null,null,null,null,null,"xxx","POP EQ 021"]
[null,null,null,null,null,"PRO 07 Calibração e Qualificação de Equipamentos"]
[null,null,null,null,null,"PRO 08 Auditoria Interna"]
[null,null,null,null,null,"PRO 09 Controle de Saídas Não Conforme"]
[null,null,null,null,null,"PRO 10 Ação Corretiva / Preventiva e Mehorias"]
[null,null,null,null,null,"PRO 11Confidencialidade e Imparcialidade",null,null,null,null,null,"POP TEC 014","POP EQ 016"]
[null,null,null,null,null,"PRO 12 Gestão de Riscos e Oportunidades",null,null,null,null,null,"POP TEC 091","POP EQ 021"]
[null,null,null,null,null,"PRO 13 Garantia da Validade dos Resultados",null,null,null,null,null,"POP TEC 102","POP EQ 098"]
[]
[]
[]
[null,null,null,null,null,"POP TEC 065","POP EQ 115"]
[null,null,null,null,null,"POP TEC 078","xxx"]
[null,null,null,null,null,null,null,null,null,null,null,"POP TEC 001","POP EQ 001"]
[null,null,null,null,null,null,null,null,null,null,null,"xxx","POP EQ 021"]
[]
[]
[]
[]
[null,null,null,null,null,"POP TEC 001","POP EQ 082"]
[null,null,null,null,null,"POP TEC 111","xxx",null,null,null,null,"POP TEC 112","POP EQ 001"]
[null,null,null,null,null,null,null,null,null,null,null,null,"POP EQ 004"]
[null,null,null,null,null,null,null,null,null,null,null,null,"POP EQ 021"]
[null,null,null,null,null,null,null,null,null,null,null,null,"POP EQ 076"]
[]
[]
[null,null,null,null,null,"  POP TEC 113","POP EQ 008"]
[null,null,null,null,null,"POP TEC 132","POP EQ 083",null,null,null,null,"XXX","POP EQ 001"]
[null,null,null,null,null,null,null,null,null,null,null,null,"POP EQ 007"]
[null,null,null,null,null,null,null,null,null,null,null,null,"POP EQ 021"]
[]
[]
[null,null,null,null,null,null,null,null,null,null,null,"POP TEC 131"]
[null,null,null,null,null," POP TEC 066","POP EQ 001"]
[null,null,null,null,null,"POP TEC 080","POP EQ 021",null,null,null,null,null,"POP EQ 116"]
[null,null,null,null,null,null,null,null,null,null,null,null,"POP EQ 117"]
[]
[]
[null,null,null,null,null,"POP TEC 002","POP EQ 090"]
[null,null,null,null,null,"POP TEC 003","POP EQ 099"]
[null,null,null,null,null,"POP TEC 010","POP EQ 115"]
[null,null,null,null,null,"POP TEC 018","xxx"]
[null,null,null,null,null,"POP TEC 019","xxx"]
[null,null,null,null,null,"POP TEC 020","xxx"]
[null,null,null,null,null,"POP TEC 070","xxx"]
[null,null,null,null,null,"POP TEC 077","xxx"]
[null,null,null,null,null,"POP TEC 079","xxx"]
[null,null,null,null,null,"POP TEC 101","xxx"]
[null,null,null,null,null,"POP TEC 104                                 ","xxx"]

{"sheet":"Descrição de Pop´s","index":4,"n_rows":39,"n_cols":18,"rows_kept":39,"cut":false,"hidden":false,"merged":[[14,17,14,27],[15,17,15,27],[13,3,13,13],[14,3,14,13],[15,3,15,13],[0,0,4,0],[0,2,4,42],[6,2,11,11],[6,16,11,28],[13,17,13,27]]}
[]
[]
[]
[]
[]
[]
[null,null,"                  Pop´s Técnicos ",null,null,null,null,null,null,null,null,null,null,null,null,null,"     Pop´s Equipamentos "]
[]
[]
[]
[]
[]
[]
[null,null,"POP TEC - 001","Preparação e Controle de Soluções Reagente e Fases-Móveis do Laboratório.",null,null,null,null,null,null,null,null,null,null,null,null,"POP EQ - 001","Utilização e Limpeza da Balança Analítica Prix Série AS"]
[null,null,"POP TEC - 002","Recepção, armazenamento controle e utilização de Reagentes analiticos ",null,null,null,null,null,null,null,null,null,null,null,null,"POP EQ - 004","Utilização e Limpeza do Aparelho de Dissolução"]
[null,null,"POP TEC - 003","Registro de Dados Analíticos pelo Controle de Qualidade",null,null,null,null,null,null,null,null,null,null,null,null,"POP EQ - 007","Utilização e Limpeza Estufa de Secagem e Esterilização "]
[null,null,"POP TEC - 010","Verificação e Registros Diários de Temperatura e Umidade Relativa do Ar",null,null,null,null,null,null,null,null,null,null,null,null,"POP EQ - 008","Utilização e Limpeza do PHMETRO Quimis Q400A / Q400AS"]
[null,null,"POP TEC - 013","Preparação, Padronização e Controle de Materiais de Referência ",null,null,null,null,null,null,null,null,null,null,null,null,"POP EQ - 016","Utilização e Limpeza HPLC MERCK (DAD e UV)"]
[null,null,"POP TEC - 014","Procedimento para Validação de Métodos Analíticos",null,null,null,null,null,null,null,null,null,null,null,null,"POP EQ - 016","Utilização e Limpeza HPLC MERCK (DAD e UV)"]
[null,null,"POP TEC - 018","Métodos Analíticos",null,null,null,null,null,null,null,null,null,null,null,null,"POP EQ - 017","Utilização e Limpeza Espectrofotômetro "]
[null,null,"POP TEC - 019","Preenchimento de Log Book",null,null,null,null,null,null,null,null,null,null,null,null,"POP EQ - 021","Utilização e Limpeza da Balança Analítica Shimadzu Modelo AX 200 e AY 220"]
[null,null,"POP TEC - 020","Descarte de Resíduos",null,null,null,null,null,null,null,null,null,null,null,null,"POP EQ - 076 ","Utilização e Limpeza do Aparelho de Dissolução Quimis"]
[null,null,"POP TEC - 065","Método Geral para Uniformidade de Conteúdo",null,null,null,null,null,null,null,null,null,null,null,null,"POP EQ - 082","Utilização e Limpeza do Karl Fisher"]
[null,null,"POP TEC - 066","Método Geral para Determinação de Peso Médio",null,null,null,null,null,null,null,null,null,null,null,null,"POP EQ - 083","Utilização e Limpeza do Condutivímetro Hanna HI 98192"]
[null,null,"POP TEC - 070","Método Geral para Resultado Fora de Especificação",null,null,null,null,null,null,null,null,null,null,null,null,"POP EQ - 084","Utilização e Limpeza do Condutivímetro INOLAB COND 7110"]
[null,null,"POP TEC - 077","Liberação de Água do Ultrapurificador GEHAKA MS 2000",null,null,null,null,null,null,null,null,null,null,null,null,"POP EQ - 090","Utilização e Limpeza  do Dessecador DRY Box"]
[null,null,"POP TEC - 078","Manutenção Coluna HPLC.",null,null,null,null,null,null,null,null,null,null,null,null,"POP EQ - 098","Utilização e Limpeza do HPLC MERCK CHROMASTER"]
[null,null,"POP TEC - 079","Verificação e Registro de Temperatura da Geladeira",null,null,null,null,null,null,null,null,null,null,null,null,"POP EQ - 099","Utilização e Limpeza do Ultrapurificador GEHAKA MS 2000"]
[null,null,"POP TEC - 080","Critérios de Aceitação e Verificação Diárias das Balanças Analiticas",null,null,null,null,null,null,null,null,null,null,null,null,"POP EQ - 115","Utilização e Limpeza da Lavadora Ultrasom SONITOP 425-A"]
[null,null,"POP TEC - 091","Cálculo de Incerteza de Medição",null,null,null,null,null,null,null,null,null,null,null,null,"POP EQ - 116","Utilização e Limpeza do Friabilometro"]
[null,null,"POP TEC - 100","Limpeza do Laboratório",null,null,null,null,null,null,null,null,null,null,null,null,"POP EQ - 117","Utilização e Limpeza do Durômetro"]
[null,null,"POP TEC - 101","Método de Arredondamento",null,null,null,null,null,null,null,null,null,null,null,null,"POP EQ - 118","Utilização e Limpeza do Condutivimetro  HANNA HI 98309"]
[null,null,"POP TEC - 102","Planejamento e Execusão para Pesquisa e Desenvolvimento "]
[null,null,"POP TEC - 104","Utilização de Pipetas de Vidro, Volumétrica e Graduada"]
[null,null,"POP TEC - 111","Método Geral de Karl Fisher"]
[null,null,"POP TEC - 112","Método Geral de Teste de Dissolução"]
[null,null,"POP TEC - 113","Método Geral de Condutividade da Água"]
[null,null,"POP TEC - 131","Método Geral de Determinação de Resistencia Mecânica em comprimidos"]
[null,null,"POP TEC - 132","Método Geral de Medição de pH"]

{"sheet":"Integração","index":5,"n_rows":22,"n_cols":19,"rows_kept":22,"cut":false,"hidden":false,"merged":[[21,18,22,21],[21,8,22,11],[21,13,22,16],[21,3,22,6],[29,18,30,21],[29,3,30,6],[25,8,26,11],[29,8,30,11],[25,13,26,16],[29,13,30,16],[25,18,26,21],[25,3,26,6],[10,18,11,21],[14,18,15,21],[17,18,18,21],[0,0,4,0],[10,13,11,16],[14,13,15,16],[17,13,18,16],[10,3,11,6],[14,3,15,6],[17,3,18,6],[10,8,11,11],[0,2,4,43],[14,8,15,11],[17,8,18,11]]}
[]
[]
[]
[]
[]
[]
[]
[]
[]
[]
[null,null,null,"Treinamento Finalizado",null,null,null,null,"Treinamento Finalizado",null,null,null,null,"Treinamento Finalizado",null,null,null,null,"Treinamento Finalizado"]
[]
[]
[]
[null,null,null,"Treinamento Finalizado",null,null,null,null,"Treinamento Finalizado",null,null,null,null,"Treinamento Finalizado",null,null,null,null,"Treinamento Finalizado"]
[]
[]
[null,null,null,"Treinamento Finalizado",null,null,null,null,"Treinamento Finalizado",null,null,null,null,"Treinamento Finalizado",null,null,null,null,"Treinamento Finalizado"]
[]
[]
[]
[null,null,null,"Treinamento Finalizado",null,null,null,null,"Treinamento Finalizado",null,null,null,null,"Treinamento Finalizado",null,null,null,null,"Treinamento Finalizado"]

{"sheet":"Treinamentos","index":6,"n_rows":55,"n_cols":73,"rows_kept":55,"cut":false,"hidden":false,"merged":[[49,69,49,70],[49,72,49,73],[52,69,53,70],[52,72,53,73],[54,69,54,70],[54,72,54,73],[42,69,43,70],[42,72,43,73],[44,69,44,70],[44,72,44,73],[47,69,48,70],[47,72,48,73],[34,69,34,70],[34,72,34,73],[37,69,38,70],[37,72,38,73],[39,69,39,70],[39,72,39,73],[27,69,28,70],[27,72,28,73],[29,69,29,70],[29,72,29,73],[32,69,33,70],[32,72,33,73],[19,69,19,70],[19,72,19,73],[22,69,23,70],[22,72,23,73],[24,69,24,70],[24,72,24,73],[13,69,14,70],[13,72,14,73],[15,69,15,70],[15,72,15,73],[17,69,18,70],[17,72,18,73],[49,63,49,64],[49,66,49,67],[52,63,53,64],[52,66,53,67],[54,63,54,64],[54,66,54,67],[42,63,43,64],[42,66,43,67],[44,63,44,64],[44,66,44,67],[47,63,48,64],[47,66,48,67],[34,63,34,64],[34,66,34,67],[37,63,38,64],[37,66,38,67],[39,63,39,64],[39,66,39,67],[27,63,28,64],[27,66,28,67],[29,63,29,64],[29,66,29,67],[32,63,33,64],[32,66,33,67],[19,63,19,64],[19,66,19,67],[22,63,23,64],[22,66,23,67],[24,63,24,64],[24,66,24,67],[13,63,14,64],[13,66,14,67],[15,63,15,64],[15,66,15,67],[17,63,18,64],[17,66,18,67],[49,57,49,58],[49,60,49,61],[52,57,53,58],[52,60,53,61],[54,57,54,58],[54,60,54,61],[42,57,43,58],[42,60,43,61],[44,57,44,58],[44,60,44,61],[47,57,48,58],[47,60,48,61],[34,57,34,58],[34,60,34,61],[37,57,38,58],[37,60,38,61],[39,57,39,58],[39,60,39,61],[27,57,28,58],[27,60,28,61],[29,57,29,58],[29,60,29,61],[32,57,33,58],[32,60,33,61],[19,57,19,58],[19,60,19,61],[22,57,23,58],[22,60,23,61],[24,57,24,58],[24,60,24,61],[13,57,14,58],[13,60,14,61],[15,57,15,58],[15,60,15,61],[17,57,18,58],[17,60,18,61],[49,51,49,52],[49,54,49,55],[52,51,53,52],[52,54,53,55],[54,51,54,52],[54,54,54,55],[42,51,43,52],[42,54,43,55],[44,51,44,52],[44,54,44,55],[47,51,48,52],[47,54,48,55],[34,51,34,52],[34,54,34,55],[37,51,38,52],[37,54,38,55],[39,51,39,52],[39,54,39,55],[27,51,28,52],[27,54,28,55],[29,51,29,52],[29,54,29,55],[32,51,33,52],[32,54,33,55],[19,51,19,52],[19,54,19,55],[22,51,23,52],[22,54,23,55],[24,51,24,52],[24,54,24,55],[13,51,14,52],[13,54,14,55],[15,51,15,52],[15,54,15,55],[17,51,18,52],[17,54,18,55],[49,45,49,46],[49,48,49,49],[52,45,53,46],[52,48,53,49],[54,45,54,46],[54,48,54,49],[42,45,43,46],[42,48,43,49],[44,45,44,46],[44,48,44,49],[47,45,48,46],[47,48,48,49],[34,45,34,46],[34,48,34,49],[37,45,38,46],[37,48,38,49],[39,45,39,46],[39,48,39,49],[27,45,28,46],[27,48,28,49],[29,45,29,46],[29,48,29,49],[32,45,33,46],[32,48,33,49],[19,45,19,46],[19,48,19,49],[22,45,23,46],[22,48,23,49],[24,45,24,46],[24,48,24,49],[13,45,14,46],[13,48,14,49],[15,45,15,46],[15,48,15,49],[17,45,18,46],[17,48,18,49],[49,39,49,40],[49,42,49,43],[52,39,53,40],[52,42,53,43],[54,39,54,40],[54,42,54,43],[42,39,43,40],[42,42,43,43],[44,39,44,40],[44,42,44,43],[47,39,48,40],[47,42,48,43],[34,39,34,40],[34,42,34,43],[37,39,38,40],[37,42,38,43],[39,39,39,40],[39,42,39,43],[27,39,28,40],[27,42,28,43],[29,39,29,40],[29,42,29,43],[32,39,33,40],[32,42,33,43],[19,39,19,40],[19,42,19,43],[22,39,23,40],[22,42,23,43],[24,39,24,40],[24,42,24,43],[13,39,14,40],[13,42,14,43],[15,39,15,40],[15,42,15,43],[17,39,18,40],[17,42,18,43],[49,33,49,34],[49,36,49,37],[52,33,53,34],[52,36,53,37],[54,33,54,34],[54,36,54,37],[42,33,43,34],[42,36,43,37],[44,33,44,34],[44,36,44,37],[47,33,48,34],[47,36,48,37],[34,33,34,34],[34,36,34,37],[37,33,38,34],[37,36,38,37],[39,33,39,34],[39,36,39,37],[27,33,28,34],[27,36,28,37],[29,33,29,34],[29,36,29,37],[32,33,33,34],[32,36,33,37],[19,33,19,34],[19,36,19,37],[22,33,23,34],[22,36,23,37],[24,33,24,34],[24,36,24,37],[13,33,14,34],[13,36,14,37],[15,33,15,34],[15,36,15,37],[17,33,18,34],[17,36,18,37],[49,27,49,28],[49,30,49,31],[52,27,53,28],[52,30,53,31],[54,27,54,28],[54,30,54,31],[42,27,43,28],[42,30,43,31],[44,27,44,28],[44,30,44,31],[47,27,48,28],[47,30,48,31],[34,27,34,28],[34,30,34,31],[37,27,38,28],[37,30,38,31],[39,27,39,28],[39,30,39,31],[27,27,28,28],[27,30,28,31],[29,27,29,28],[29,30,29,31],[32,27,33,28],[32,30,33,31],[19,27,19,28],[19,30,19,31],[22,27,23,28],[22,30,23,31],[24,27,24,28],[24,30,24,31],[13,27,14,28],[13,30,14,31],[15,27,15,28],[15,30,15,31],[17,27,18,28],[17,30,18,31],[49,21,49,22],[49,24,49,25],[52,21,53,22],[52,24,53,25],[54,21,54,22],[54,24,54,25],[42,21,43,22],[42,24,43,25],[44,21,44,22],[44,24,44,25],[47,21,48,22],[47,24,48,25],[34,21,34,22],[34,24,34,25],[37,21,38,22],[37,24,38,25],[39,21,39,22],[39,24,39,25],[27,21,28,22],[27,24,28,25],[29,21,29,22],[29,24,29,25],[32,21,33,22],[32,24,33,25],[13,12,14,13],[15,12,15,13],[19,21,19,22],[19,24,19,25],[22,21,23,22],[22,24,23,25],[24,21,24,22],[24,24,24,25],[13,24,14,25],[15,21,15,22],[15,24,15,25],[17,21,18,22],[17,24,18,25],[0,3,4,100],[17,18,18,19],[19,18,19,19],[22,9,23,10],[24,9,24,10],[22,12,23,13],[24,12,24,13],[22,15,23,16],[24,15,24,16],[22,18,23,19],[24,18,24,19],[19,9,19,10],[19,12,19,13],[19,15,19,16],[17,9,18,10],[17,12,18,13],[17,15,18,16],[13,15,14,16],[15,15,15,16],[13,18,14,19],[15,18,15,19],[13,21,14,22],[13,9,14,10],[15,9,15,10],[27,18,28,19],[29,18,29,19],[32,9,33,10],[34,9,34,10],[32,12,33,13],[34,12,34,13],[32,15,33,16],[34,15,34,16],[32,18,33,19],[34,18,34,19],[27,9,28,10],[29,9,29,10],[27,12,28,13],[29,12,29,13],[27,15,28,16],[29,15,29,16],[37,18,38,19],[39,18,39,19],[42,9,43,10],[44,9,44,10],[42,12,43,13],[44,12,44,13],[42,15,43,16],[44,15,44,16],[42,18,43,19],[44,18,44,19],[37,9,38,10],[39,9,39,10],[37,12,38,13],[39,12,39,13],[37,15,38,16],[39,15,39,16],[47,18,48,19],[49,18,49,19],[52,9,53,10],[54,9,54,10],[52,12,53,13],[54,12,54,13],[52,15,53,16],[54,15,54,16],[52,18,53,19],[54,18,54,19],[47,9,48,10],[49,9,49,10],[47,12,48,13],[49,12,49,13],[47,15,48,16],[49,15,49,16]]}
[]
[]
[]
[]
[]
[]
[]
[]
[]
[]
[]
[]
[]
[null,null,null,null,null,null,null,null,null,{"$f":"IF(Geral!H14<>\"Trein. Finalizado\",\"Em Treinamento\",IF(Geral!J14<>\"Trein. Finalizado\",\"Em Treinamento\",IF(Geral!L14<>\"Trein. Finalizado\",\"Em Treinamento\",IF(Geral!N14<>\"Trein. Finalizado\",\"Em Treinamento\",IF(Geral!P14<>\"Trein. Finalizado\",\"Em Treinamento\",IF(Geral!R14<>\"Trein. Finalizado\",\"Em Treinamento\",IF(Geral!T14<>\"Trein. Finalizado\",\"Em Treinamento\",IF(Geral!V14<>\"Trein. Finalizado\",\"Em Treinamento\",IF(Geral!X14<>\"Trein. Finalizado\",\"Em Treinamento\",IF(Geral!Z14<>\"Trein. Finalizado\",\"Em Treinamento\",IF(Geral!AB14<>\"Trein. Finalizado\",\"Em Treinamento\",IF(Geral!AD14<>\"Trein. Finalizado\",\"Em Treinamento\",IF(Geral!AF14<>\"Trein. Finalizado\",\"Em Treinamento\",IF(Geral!AH14<>\"Trein. Finalizado\",\"Em Treinamento\",IF(Geral!AJ14<>\"Trein. Finalizado\",\"Em Treinamento\",\"Treinamento Finalizado\")))))))))))))))","v":"Treinamento Finalizado"},null,null,{"$f":"IF(Geral!H17<>\"Treinamento Finalizado\",\"Em Treinamento\",IF(Geral!J17<>\"Treinamento Finalizado\",\"Em Treinamento\",IF(Geral!L17<>\"Treinamento Finalizado\",\"Em Treinamento\",IF(Geral!N17<>\"Treinamento Finalizado\",\"Em Treinamento\",IF(Geral!P17<>\"Treinamento Finalizado\",\"Em Treinamento\",IF(Geral!R17<>\"Treinamento Finalizado\",\"Em Treinamento\",IF(Geral!T17<>\"Treinamento Finalizado\",\"Em Treinamento\",IF(Geral!V17<>\"Treinamento Finalizado\",\"Em Treinamento\",IF(Geral!X17<>\"Treinamento Finalizado\",\"Em Treinamento\",IF(Geral!Z17<>\"Treinamento Finalizado\",\"Em Treinamento\",IF(Geral!AB17<>\"Treinamento Finalizado\",\"Em Treinamento\",IF(Geral!AD17<>\"Treinamento Finalizado\",\"Em Treinamento\",IF(Geral!AF17<>\"Treinamento Finalizado\",\"Em Treinamento\",IF(Geral!AH17<>\"Treinamento Finalizado\",\"Em Treinamento\",IF(Geral!AJ17<>\"Treinamento Finalizado\",\"Em Treinamento\",\"Treinamento Finalizado\")))))))))))))))","v":"Em Treinamento"},null,null,{"$f":"IF(hplc!F14<>\"Trein. Finalizado\",\"Em treinamento\",IF(hplc!H14<>\"Trein. Finalizado\",\"Em treinamento\",IF(hplc!J14<>\"Trein. Finalizado\",\"Em treinamento\",IF(hplc!L14<>\"Trein. Finalizado\",\"Em treinamento\",IF(hplc!N14<>\"Trein. Finalizado\",\"Em treinamento\",IF(hplc!P14<>\"Trein. Finalizado\",\"Em treinamento\",IF(hplc!R14<>\"Trein. Finalizado\",\"Em treinamento\",IF(hplc!T14<>\"Trein. Finalizado\",\"Em treinamento\",\"Treinamento Finalizado\"))))))))","v":"Treinamento Finalizado"},null,null,{"$f":"IF(hplc!F17<>\"Trein. Finalizado\",\"Em treinamento\",IF(hplc!H17<>\"Trein. Finalizado\",\"Em treinamento\",IF(hplc!J17<>\"Trein. Finalizado\",\"Em treinamento\",IF(hplc!L17<>\"Trein. Finalizado\",\"Em treinamento\",IF(hplc!N17<>\"Trein. Finalizado\",\"Em treinamento\",IF(hplc!P17<>\"Trein. Finalizado\",\"Em treinamento\",IF(hplc!R17<>\"Trein. Finalizado\",\"Em treinamento\",IF(hplc!T17<>\"Trein. Finalizado\",\"Em treinamento\",\"Treinamento Finalizado\"))))))))","v":"Em treinamento"},null,null,{"$f":"IF(Espectro!F14<>\"Trein. Finalizado\",\"Em Treinamento\",IF(Espectro!H14<>\"Trein. Finalizado\",\"Em Treinamento\",IF(Espectro!J14<>\"Trein. Finalizado\",\"Em Treinamento\",IF(Espectro!L14<>\"Trein. Finalizado\",\"Em Treinamento\",\"Treinamento Finalizado\"))))","v":"Treinamento Finalizado"},null,null,{"$f":"IF(Espectro!F17<>\"Trein. Finalizado\",\"Em Treinamento\",IF(Espectro!H17<>\"Trein. Finalizado\",\"Em Treinamento\",IF(Espectro!J17<>\"Trein. Finalizado\",\"Em Treinamento\",IF(Espectro!L17<>\"Trein. Finalizado\",\"Em Treinamento\",\"Treinamento Finalizado\"))))","v":"Em Treinamento"},null,null,{"$f":"IF('Karl fischer'!F14<>\"Trein. Finalizado\",\"Em Treinamento\",IF('Karl fischer'!H14<>\"Trein. Finalizado\",\"Em Treinamento\",IF('Karl fischer'!J14<>\"Trein. Finalizado\",\"Em Treinamento\",IF('Karl fischer'!L14<>\"Trein. Finalizado\",\"Em Treinamento\",\"Treinamento Finalizado\"))))","v":"Treinamento Finalizado"},null,null,{"$f":"IF('Karl fischer'!F17<>\"Trein. Finalizado\",\"Em Treinamento\",IF('Karl fischer'!H17<>\"Trein. Finalizado\",\"Em Treinamento\",IF('Karl fischer'!J17<>\"Trein. Finalizado\",\"Em Treinamento\",IF('Karl fischer'!L17<>\"Trein. Finalizado\",\"Em Treinamento\",\"Treinamento Finalizado\"))))","v":"Em Treinamento"},null,null,{"$f":"IF(Agua!F14<>\"Trein. Finalizado\",\"Em Treinamento\",IF(Agua!H14<>\"Trein. Finalizado\",\"Em Treinamento\",IF(Agua!J14<>\"Trein. Finalizado\",\"Em Treinamento\",IF(Agua!L14<>\"Trein. Finalizado\",\"Em Treinamento\",\"Treinamento Finalizado\"))))","v":"Treinamento Finalizado"},null,null,{"$f":"IF(Agua!F17<>\"Trein. Finalizado\",\"Em Treinamento\",IF(Agua!H17<>\"Trein. Finalizado\",\"Em Treinamento\",IF(Agua!J17<>\"Trein. Finalizado\",\"Em Treinamento\",IF(Agua!L17<>\"Trein. Finalizado\",\"Em Treinamento\",\"Treinamento Finalizado\"))))","v":"Em Treinamento"},null,null,{"$f":"IF(Titulação!F14<>\"Trein. Finalizado\",\"Em Treinamento\",IF(Titulação!H14<>\"Trein. Finalizado\",\"Em Treinamento\",IF(Titulação!J14<>\"Trein. Finalizado\",\"Em Treinamento\",IF(Titulação!L14<>\"Trein. Finalizado\",\"Em Treinamento\",\"Treinamento Finalizado\"))))","v":"Treinamento Finalizado"},null,null,{"$f":"IF(Titulação!F17<>\"Trein. Finalizado\",\"Em Treinamento\",IF(Titulação!H17<>\"Trein. Finalizado\",\"Em Treinamento\",IF(Titulação!J17<>\"Trein. Finalizado\",\"Em Treinamento\",IF(Titulação!L17<>\"Trein. Finalizado\",\"Em Treinamento\",\"Treinamento Finalizado\"))))","v":"Em Treinamento"},null,null,{"$f":"IF('Peso Medio'!F14<>\"Trein. Finalizado\",\"Em Treinamento\",IF('Peso Medio'!H14<>\"Trein. Finalizado\",\"Em Treinamento\",IF('Peso Medio'!J14<>\"Trein. Finalizado\",\"Em Treinamento\",IF('Peso Medio'!L14<>\"Trein. Finalizado\",\"Em Treinamento\",\"Treinamento Finalizado\"))))","v":"Treinamento Finalizado"},null,null,{"$f":"IF('Peso Medio'!F17<>\"Trein. Finalizado\",\"Em Treinamento\",IF('Peso Medio'!H17<>\"Trein. Finalizado\",\"Em Treinamento\",IF('Peso Medio'!J17<>\"Trein. Finalizado\",\"Em Treinamento\",IF('Peso Medio'!L17<>\"Trein. Finalizado\",\"Em Treinamento\",\"Treinamento Finalizado\"))))","v":"Em Treinamento"},null,null,{"$f":"IF('Validação '!F14<>\"Trein. Finalizado\",\"Em Treinamento\",IF('Validação '!H14<>\"Trein. Finalizado\",\"Em Treinamento\",IF('Validação '!J14<>\"Trein. Finalizado\",\"Em Treinamento\",IF('Validação '!L14<>\"Trein. Finalizado\",\"Em Treinamento\",IF('Validação '!N14<>\"Trein. Finalizado\",\"Em Treinamento\",IF('Validação '!P14<>\"Trein. Finalizado\",\"Em Treinamento\",\"Treinamento Finalizado\"))))))","v":"Treinamento Finalizado"},null,null,{"$f":"IF('Validação '!F17<>\"Trein. Finalizado\",\"Em Treinamento\",IF('Validação '!H17<>\"Trein. Finalizado\",\"Em Treinamento\",IF('Validação '!J17<>\"Trein. Finalizado\",\"Em Treinamento\",IF('Validação '!L17<>\"Trein. Finalizado\",\"Em Treinamento\",IF('Validação '!N17<>\"Trein. Finalizado\",\"Em Treinamento\",IF('Validação '!P17<>\"Trein. Finalizado\",\"Em Treinamento\",\"Treinamento Finalizado\"))))))","v":"Em Treinamento"},null,null,{"$f":"IF('Teor A.'!F14<>\"Trein. Finalizado\",\"Em Treinamento\",IF('Teor A.'!H14<>\"Trein. Finalizado\",\"Em Treinamento\",IF('Teor A.'!J14<>\"Trein. Finalizado\",\"Em Treinamento\",\"Treinamento Finalizado\")))","v":"Treinamento Finalizado"},null,null,{"$f":"IF('Teor A.'!F17<>\"Trein. Finalizado\",\"Em Treinamento\",IF('Teor A.'!H17<>\"Trein. Finalizado\",\"Em Treinamento\",IF('Teor A.'!J17<>\"Trein. Finalizado\",\"Em Treinamento\",\"Treinamento Finalizado\")))","v":"Em Treinamento"},null,null,{"$f":"IF(Perfil!F14<>\"Trein. Finalizado\",\"Em Treinamento\",IF(Perfil!H14<>\"Trein. Finalizado\",\"Em Treinamento\",IF(Perfil!J14<>\"Trein. Finalizado\",\"Em Treinamento\",IF(Perfil!L14<>\"Trein. Finalizado\",\"Em Treinamento\",IF(Perfil!N14<>\"Trein. Finalizado\",\"Em Treinamento\",\"Treinamento Finalizado\")))))","v":"Treinamento Finalizado"},null,null,{"$f":"IF(Perfil!F17<>\"Trein. Finalizado\",\"Em Treinamento\",IF(Perfil!H17<>\"Trein. Finalizado\",\"Em Treinamento\",IF(Perfil!J17<>\"Trein. Finalizado\",\"Em Treinamento\",IF(Perfil!L17<>\"Trein. Finalizado\",\"Em Treinamento\",IF(Perfil!N17<>\"Trein. Finalizado\",\"Em Treinamento\",\"Treinamento Finalizado\")))))","v":"Em Treinamento"}]
[]
[null,null,null,null,null,null,null,null,null,{"$f":"IF(J14=\"Treinamento Finalizado\",NOW(),\"---\")","v":"2023-06-09T10:45:11.160"},null,null,{"$f":"IF(M14=\"Treinamento Finalizado\",NOW(),\"---\")","v":"---"},null,null,{"$f":"IF(P14=\"Treinamento Finalizado\",NOW(),\"---\")","v":"2023-06-09T10:45:11.160"},null,null,{"$f":"IF(S14=\"Treinamento Finalizado\",NOW(),\"---\")","v":"---"},null,null,{"$f":"IF(V14=\"Treinamento Finalizado\",NOW(),\"---\")","v":"2023-06-09T10:45:11.160"},null,null,{"$f":"IF(Y14=\"Treinamento Finalizado\",NOW(),\"---\")","v":"---"},null,null,{"$f":"IF(AB14=\"Treinamento Finalizado\",NOW(),\"---\")","v":"2023-06-09T10:45:11.160"},null,null,{"$f":"IF(AE14=\"Treinamento Finalizado\",NOW(),\"---\")","v":"---"},null,null,{"$f":"IF(AH14=\"Treinamento Finalizado\",NOW(),\"---\")","v":"2023-06-09T10:45:11.160"},null,null,{"$f":"IF(AK14=\"Treinamento Finalizado\",NOW(),\"---\")","v":"---"},null,null,{"$f":"IF(AN14=\"Treinamento Finalizado\",NOW(),\"---\")","v":"2023-06-09T10:45:11.160"},null,null,{"$f":"IF(AQ14=\"Treinamento Finalizado\",NOW(),\"---\")","v":"---"},null,null,{"$f":"IF($AT$14=\"Treinamento Finalizado\",NOW(),\"---\")","v":"2023-06-09T10:45:11.160"},null,null,{"$f":"IF(AW14=\"Treinamento Finalizado\",NOW(),\"---\")","v":"---"},null,null,{"$f":"IF(AZ14=\"Treinamento Finalizado\",NOW(),\"---\")","v":"2023-06-09T10:45:11.160"},null,null,{"$f":"IF(BC14=\"Treinamento Finalizado\",NOW(),\"---\")","v":"---"},null,null,{"$f":"IF(BF14=\"Treinamento Finalizado\",NOW(),\"---\")","v":"2023-06-09T10:45:11.160"},null,null,{"$f":"IF(BI14=\"Treinamento Finalizado\",NOW(),\"---\")","v":"---"},null,null,{"$f":"IF(BL14=\"Treinamento Finalizado\",NOW(),\"---\")","v":"2023-06-09T10:45:11.160"},null,null,{"$f":"IF(BO14=\"Treinamento Finalizado\",NOW(),\"---\")","v":"---"},null,null,{"$f":"IF(BR14=\"Treinamento Finalizado\",NOW(),\"---\")","v":"---"},null,null,{"$f":"IF(BU14=\"Treinamento Finalizado\",NOW(),\"---\")","v":"---"}]
[]
[null,null,null,null,null,null,null,null,null,{"$f":"IF(Geral!H20<>\"Trein. Finalizado\",\"Em Treinamento\",IF(Geral!J20<>\"Trein. Finalizado\",\"Em Treinamento\",IF(Geral!L20<>\"Trein. Finalizado\",\"Em Treinamento\",IF(Geral!N20<>\"Trein. Finalizado\",\"Em Treinamento\",IF(Geral!P20<>\"Trein. Finalizado\",\"Em Treinamento\",IF(Geral!R20<>\"Trein. Finalizado\",\"Em Treinamento\",IF(Geral!T20<>\"Trein. Finalizado\",\"Em Treinamento\",IF(Geral!V20<>\"Trein. Finalizado\",\"Em Treinamento\",IF(Geral!X20<>\"Trein. Finalizado\",\"Em Treinamento\",IF(Geral!Z20<>\"Trein. Finalizado\",\"Em Treinamento\",IF(Geral!AB20<>\"Trein. Finalizado\",\"Em Treinamento\",IF(Geral!AD20<>\"Trein. Finalizado\",\"Em Treinamento\",IF(Geral!AF20<>\"Trein. Finalizado\",\"Em Treinamento\",IF(Geral!AH20<>\"Trein. Finalizado\",\"Em Treinamento\",IF(Geral!AJ20<>\"Trein. Finalizado\",\"Em Treinamento\",\"Treinamento Finalizado\")))))))))))))))","v":"Treinamento Finalizado"},null,null,{"$f":"IF(Geral!H24<>\"Trein. Finalizado\",\"Em Treinamento\",IF(Geral!J24<>\"Trein. Finalizado\",\"Em Treinamento\",IF(Geral!L24<>\"Trein. Finalizado\",\"Em Treinamento\",IF(Geral!N24<>\"Trein. Finalizado\",\"Em Treinamento\",IF(Geral!P24<>\"Trein. Finalizado\",\"Em Treinamento\",IF(Geral!R24<>\"Trein. Finalizado\",\"Em Treinamento\",IF(Geral!T24<>\"Trein. Finalizado\",\"Em Treinamento\",IF(Geral!V24<>\"Trein. Finalizado\",\"Em Treinamento\",IF(Geral!X24<>\"Trein. Finalizado\",\"Em Treinamento\",IF(Geral!Z24<>\"Trein. Finalizado\",\"Em Treinamento\",IF(Geral!AB24<>\"Trein. Finalizado\",\"Em Treinamento\",IF(Geral!AD24<>\"Trein. Finalizado\",\"Em Treinamento\",IF(Geral!AF24<>\"Trein. Finalizado\",\"Em Treinamento\",IF(Geral!AH24<>\"Trein. Finalizado\",\"Em Treinamento\",IF(Geral!AJ24<>\"Trein. Finalizado\",\"Em Treinamento\",\"Treinamento Finalizado\")))))))))))))))","v":"Em Treinamento"},null,null,{"$f":"IF(hplc!F20<>\"Trein. Finalizado\",\"Em treinamento\",IF(hplc!H20<>\"Trein. Finalizado\",\"Em treinamento\",IF(hplc!J20<>\"Trein. Finalizado\",\"Em treinamento\",IF(hplc!L20<>\"Trein. Finalizado\",\"Em treinamento\",IF(hplc!N20<>\"Trein. Finalizado\",\"Em treinamento\",IF(hplc!P20<>\"Trein. Finalizado\",\"Em treinamento\",IF(hplc!R20<>\"Trein. Finalizado\",\"Em treinamento\",IF(hplc!T20<>\"Trein. Finalizado\",\"Em treinamento\",\"Treinamento Finalizado\"))))))))","v":"Treinamento Finalizado"},null,null,{"$f":"IF(hplc!F24<>\"Trein. Finalizado\",\"Em treinamento\",IF(hplc!H24<>\"Trein. Finalizado\",\"Em treinamento\",IF(hplc!J24<>\"Trein. Finalizado\",\"Em treinamento\",IF(hplc!L24<>\"Trein. Finalizado\",\"Em treinamento\",IF(hplc!N24<>\"Trein. Finalizado\",\"Em treinamento\",IF(hplc!P24<>\"Trein. Finalizado\",\"Em treinamento\",IF(hplc!R24<>\"Trein. Finalizado\",\"Em treinamento\",IF(hplc!T24<>\"Trein. Finalizado\",\"Em treinamento\",\"Treinamento Finalizado\"))))))))","v":"Em treinamento"},null,null,{"$f":"IF(Espectro!F20<>\"Trein. Finalizado\",\"Em Treinamento\",IF(Espectro!H20<>\"Trein. Finalizado\",\"Em Treinamento\",IF(Espectro!J20<>\"Trein. Finalizado\",\"Em Treinamento\",IF(Espectro!L20<>\"Trein. Finalizado\",\"Em Treinamento\",\"Treinamento Finalizado\"))))","v":"Treinamento Finalizado"},null,null,{"$f":"IF(Espectro!F24<>\"Trein. Finalizado\",\"Em Treinamento\",IF(Espectro!H24<>\"Trein. Finalizado\",\"Em Treinamento\",IF(Espectro!J24<>\"Trein. Finalizado\",\"Em Treinamento\",IF(Espectro!L24<>\"Trein. Finalizado\",\"Em Treinamento\",\"Treinamento Finalizado\"))))","v":"Em Treinamento"},null,null,{"$f":"IF('Karl fischer'!F20<>\"Trein. Finalizado\",\"Em Treinamento\",IF('Karl fischer'!H20<>\"Trein. Finalizado\",\"Em Treinamento\",IF('Karl fischer'!J20<>\"Trein. Finalizado\",\"Em Treinamento\",IF('Karl fischer'!L20<>\"Trein. Finalizado\",\"Em Treinamento\",\"Treinamento Finalizado\"))))","v":"Treinamento Finalizado"},null,null,{"$f":"IF('Karl fischer'!F24<>\"Trein. Finalizado\",\"Em Treinamento\",IF('Karl fischer'!H24<>\"Trein. Finalizado\",\"Em Treinamento\",IF('Karl fischer'!J24<>\"Trein. Finalizado\",\"Em Treinamento\",IF('Karl fischer'!L24<>\"Trein. Finalizado\",\"Em Treinamento\",\"Treinamento Finalizado\"))))","v":"Em Treinamento"},null,null,{"$f":"IF(Agua!F20<>\"Trein. Finalizado\",\"Em Treinamento\",IF(Agua!H20<>\"Trein. Finalizado\",\"Em Treinamento\",IF(Agua!J20<>\"Trein. Finalizado\",\"Em Treinamento\",IF(Agua!L20<>\"Trein. Finalizado\",\"Em Treinamento\",\"Treinamento Finalizado\"))))","v":"Treinamento Finalizado"},null,null,{"$f":"IF(Agua!F24<>\"Trein. Finalizado\",\"Em Treinamento\",IF(Agua!H24<>\"Trein. Finalizado\",\"Em Treinamento\",IF(Agua!J24<>\"Trein. Finalizado\",\"Em Treinamento\",IF(Agua!L24<>\"Trein. Finalizado\",\"Em Treinamento\",\"Treinamento Finalizado\"))))","v":"Em Treinamento"},null,null,{"$f":"IF(Titulação!F20<>\"Trein. Finalizado\",\"Em Treinamento\",IF(Titulação!H20<>\"Trein. Finalizado\",\"Em Treinamento\",IF(Titulação!J20<>\"Trein. Finalizado\",\"Em Treinamento\",IF(Titulação!L20<>\"Trein. Finalizado\",\"Em Treinamento\",\"Treinamento Finalizado\"))))","v":"Treinamento Finalizado"},null,null,{"$f":"IF(Titulação!F24<>\"Trein. Finalizado\",\"Em Treinamento\",IF(Titulação!H24<>\"Trein. Finalizado\",\"Em Treinamento\",IF(Titulação!J24<>\"Trein. Finalizado\",\"Em Treinamento\",IF(Titulação!L24<>\"Trein. Finalizado\",\"Em Treinamento\",\"Treinamento Finalizado\"))))","v":"Em Treinamento"},null,null,{"$f":"IF('Peso Medio'!F20<>\"Trein. Finalizado\",\"Em Treinamento\",IF('Peso Medio'!H20<>\"Trein. Finalizado\",\"Em Treinamento\",IF('Peso Medio'!J20<>\"Trein. Finalizado\",\"Em Treinamento\",IF('Peso Medio'!L20<>\"Trein. Finalizado\",\"Em Treinamento\",\"Treinamento Finalizado\"))))","v":"Treinamento Finalizado"},null,null,{"$f":"IF('Peso Medio'!F24<>\"Trein. Finalizado\",\"Em Treinamento\",IF('Peso Medio'!H24<>\"Trein. Finalizado\",\"Em Treinamento\",IF('Peso Medio'!J24<>\"Trein. Finalizado\",\"Em Treinamento\",IF('Peso Medio'!L24:M24<>\"Trein. Finalizado\",\"Em Treinamento\",\"Treinamento Finalizado\"))))","v":"Em Treinamento"},null,null,{"$f":"IF('Validação '!F20<>\"Trein. Finalizado\",\"Em Treinamento\",IF('Validação '!H20<>\"Trein. Finalizado\",\"Em Treinamento\",IF('Validação '!J20<>\"Trein. Finalizado\",\"Em Treinamento\",IF('Validação '!L20<>\"Trein. Finalizado\",\"Em Treinamento\",IF('Validação '!N20<>\"Trein. Finalizado\",\"Em Treinamento\",IF('Validação '!P20<>\"Trein. Finalizado\",\"Em Treinamento\",\"Treinamento Finalizado\"))))))","v":"Treinamento Finalizado"},null,null,{"$f":"IF('Validação '!F24<>\"Trein. Finalizado\",\"Em Treinamento\",IF('Validação '!H24<>\"Trein. Finalizado\",\"Em Treinamento\",IF('Validação '!J24<>\"Trein. Finalizado\",\"Em Treinamento\",IF('Validação '!L24<>\"Trein. Finalizado\",\"Em Treinamento\",IF('Validação '!N24<>\"Trein. Finalizado\",\"Em Treinamento\",IF('Validação '!P24<>\"Trein. Finalizado\",\"Em Treinamento\",\"Treinamento Finalizado\"))))))","v":"Em Treinamento"},null,null,{"$f":"IF('Teor A.'!F20<>\"Trein. Finalizado\",\"Em Treinamento\",IF('Teor A.'!H20<>\"Trein. Finalizado\",\"Em Treinamento\",IF('Teor A.'!J20<>\"Trein. Finalizado\",\"Em Treinamento\",\"Treinamento Finalizado\")))","v":"Treinamento Finalizado"},null,null,{"$f":"IF('Teor A.'!F24<>\"Trein. Finalizado\",\"Em Treinamento\",IF('Teor A.'!H24<>\"Trein. Finalizado\",\"Em Treinamento\",IF('Teor A.'!J24<>\"Trein. Finalizado\",\"Em Treinamento\",\"Treinamento Finalizado\")))","v":"Treinamento Finalizado"},null,null,{"$f":"IF(Perfil!F20<>\"Trein. Finalizado\",\"Em Treinamento\",IF(Perfil!H20<>\"Trein. Finalizado\",\"Em Treinamento\",IF(Perfil!J20<>\"Trein. Finalizado\",\"Em Treinamento\",IF(Perfil!L20<>\"Trein. Finalizado\",\"Em Treinamento\",IF(Perfil!N20<>\"Trein. Finalizado\",\"Em Treinamento\",\"Treinamento Finalizado\")))))","v":"Treinamento Finalizado"},null,null,{"$f":"IF(Perfil!F24<>\"Trein. Finalizado\",\"Em Treinamento\",IF(Perfil!H24<>\"Trein. Finalizado\",\"Em Treinamento\",IF(Perfil!J24<>\"Trein. Finalizado\",\"Em Treinamento\",IF(Perfil!L24<>\"Trein. Finalizado\",\"Em Treinamento\",IF(Perfil!N24<>\"Trein. Finalizado\",\"Em Treinamento\",\"Treinamento Finalizado\")))))","v":"Em Treinamento"}]
[]
[null,null,null,null,null,null,null,null,null,{"$f":"IF(J18=\"Treinamento Finalizado\",NOW(),\"---\")","v":"2023-06-09T10:45:11.160"},null,null,{"$f":"IF(M18=\"Treinamento Finalizado\",NOW(),\"---\")","v":"---"},null,null,{"$f":"IF(P18=\"Treinamento Finalizado\",NOW(),\"---\")","v":"2023-06-09T10:45:11.160"},null,null,{"$f":"IF(S18=\"Treinamento Finalizado\",NOW(),\"---\")","v":"---"},null,null,{"$f":"IF(V18=\"Treinamento Finalizado\",NOW(),\"---\")","v":"2023-06-09T10:45:11.160"},null,null,{"$f":"IF(Y18=\"Treinamento Finalizado\",NOW(),\"---\")","v":"---"},null,null,{"$f":"IF(AB18=\"Treinamento Finalizado\",NOW(),\"---\")","v":"2023-06-09T10:45:11.160"},null,null,{"$f":"IF(AE18=\"Treinamento Finalizado\",NOW(),\"---\")","v":"---"},null,null,{"$f":"IF(AH18=\"Treinamento Finalizado\",NOW(),\"---\")","v":"2023-06-09T10:45:11.160"},null,null,{"$f":"IF(AK18=\"Treinamento Finalizado\",NOW(),\"---\")","v":"---"},null,null,{"$f":"IF(AN18=\"Treinamento Finalizado\",NOW(),\"---\")","v":"2023-06-09T10:45:11.160"},null,null,{"$f":"IF(AQ18=\"Treinamento Finalizado\",NOW(),\"---\")","v":"---"},null,null,{"$f":"IF($AT$18=\"Treinamento Finalizado\",NOW(),\"---\")","v":"2023-06-09T10:45:11.160"},null,null,{"$f":"IF(AW18=\"Treinamento Finalizado\",NOW(),\"---\")","v":"---"},null,null,{"$f":"IF(AZ18=\"Treinamento Finalizado\",NOW(),\"---\")","v":"2023-06-09T10:45:11.160"},null,null,{"$f":"IF(BC18=\"Treinamento Finalizado\",NOW(),\"---\")","v":"---"},null,null,{"$f":"IF(BF18=\"Treinamento Finalizado\",NOW(),\"---\")","v":"2023-06-09T10:45:11.160"},null,null,{"$f":"IF(BI18=\"Treinamento Finalizado\",NOW(),\"---\")","v":"2023-06-09T10:45:11.160"},null,null,{"$f":"IF(BL18=\"Treinamento Finalizado\",NOW(),\"---\")","v":"2023-06-09T10:45:11.160"},null,null,{"$f":"IF(BO18=\"Treinamento Finalizado\",NOW(),\"---\")","v":"---"},null,null,{"$f":"IF(BR18=\"Treinamento Finalizado\",NOW(),\"---\")","v":"---"},null,null,{"$f":"IF(BU18=\"Treinamento Finalizado\",NOW(),\"---\")","v":"---"}]
[]
[]
[null,null,null,null,null,null,null,null,null,{"$f":"IF(Geral!H30<>\"Treinamento Finalizado\",\"Em Treinamento\",IF(Geral!K30<>\"Treinamento Finalizado\",\"Em Treinamento\",IF(Geral!L30<>\"Treinamento Finalizado\",\"Em Treinamento\",IF(Geral!N30<>\"Treinamento Finalizado\",\"Em Treinamento\",IF(Geral!P30<>\"Treinamento Finalizado\",\"Em Treinamento\",IF(Geral!R30<>\"Treinamento Finalizado\",\"Em Treinamento\",IF(Geral!T30<>\"Treinamento Finalizado\",\"Em Treinamento\",IF(Geral!V30<>\"Treinamento Finalizado\",\"Em Treinamento\",IF(Geral!X30<>\"Treinamento Finalizado\",\"Em Treinamento\",IF(Geral!Z30<>\"Treinamento Finalizado\",\"Em Treinamento\",IF(Geral!AB30<>\"Treinamento Finalizado\",\"Em Treinamento\",IF(Geral!AD30<>\"Treinamento Finalizado\",\"Em Treinamento\",IF(Geral!AF30<>\"Treinamento Finalizado\",\"Em Treinamento\",IF(Geral!AH30<>\"Treinamento Finalizado\",\"Em Treinamento\",IF(Geral!AJ30<>\"Treinamento Finalizado\",\"Em Treinamento\",\"Treinamento Finalizado\")))))))))))))))","v":"Em Treinamento"},null,null,{"$f":"IF(Geral!H33<>\"Treinamento Finalizado\",\"Em Treinamento\",IF(Geral!K33<>\"Treinamento Finalizado\",\"Em Treinamento\",IF(Geral!L33<>\"Treinamento Finalizado\",\"Em Treinamento\",IF(Geral!N33<>\"Treinamento Finalizado\",\"Em Treinamento\",IF(Geral!P33<>\"Treinamento Finalizado\",\"Em Treinamento\",IF(Geral!R33<>\"Treinamento Finalizado\",\"Em Treinamento\",IF(Geral!T33<>\"Treinamento Finalizado\",\"Em Treinamento\",IF(Geral!V33<>\"Treinamento Finalizado\",\"Em Treinamento\",IF(Geral!X33<>\"Treinamento Finalizado\",\"Em Treinamento\",IF(Geral!Z33<>\"Treinamento Finalizado\",\"Em Treinamento\",IF(Geral!AB33<>\"Treinamento Finalizado\",\"Em Treinamento\",IF(Geral!AD33<>\"Treinamento Finalizado\",\"Em Treinamento\",IF(Geral!AF33<>\"Treinamento Finalizado\",\"Em Treinamento\",IF(Geral!AH33<>\"Treinamento Finalizado\",\"Em Treinamento\",IF(Geral!AJ33<>\"Treinamento Finalizado\",\"Em Treinamento\",\"Treinamento Finalizado\")))))))))))))))","v":"Em Treinamento"},null,null,{"$f":"IF(hplc!F27<>\"Trein. Finalizado\",\"Em treinamento\",IF(hplc!H27<>\"Trein. Finalizado\",\"Em treinamento\",IF(hplc!J27<>\"Trein. Finalizado\",\"Em treinamento\",IF(hplc!L27<>\"Trein. Finalizado\",\"Em treinamento\",IF(hplc!N27<>\"Trein. Finalizado\",\"Em treinamento\",IF(hplc!P27<>\"Trein. Finalizado\",\"Em treinamento\",IF(hplc!R27<>\"Trein. Finalizado\",\"Em treinamento\",IF(hplc!T27<>\"Trein. Finalizado\",\"Em treinamento\",\"Treinamento Finalizado\"))))))))","v":"Em treinamento"},null,null,{"$f":"IF(hplc!F30<>\"Trein. Finalizado\",\"Em treinamento\",IF(hplc!H30<>\"Trein. Finalizado\",\"Em treinamento\",IF(hplc!J30<>\"Trein. Finalizado\",\"Em treinamento\",IF(hplc!L30<>\"Trein. Finalizado\",\"Em treinamento\",IF(hplc!N30<>\"Trein. Finalizado\",\"Em treinamento\",IF(hplc!P30<>\"Trein. Finalizado\",\"Em treinamento\",IF(hplc!R30<>\"Trein. Finalizado\",\"Em treinamento\",IF(hplc!T30<>\"Trein. Finalizado\",\"Em treinamento\",\"Treinamento Finalizado\"))))))))","v":"Em treinamento"},null,null,{"$f":"IF(Espectro!F27<>\"Trein. Finalizado\",\"Em Treinamento\",IF(Espectro!H27<>\"Trein. Finalizado\",\"Em Treinamento\",IF(Espectro!J27<>\"Trein. Finalizado\",\"Em Treinamento\",IF(Espectro!L27<>\"Trein. Finalizado\",\"Em Treinamento\",\"Treinamento Finalizado\"))))","v":"Em Treinamento"},null,null,{"$f":"IF(Espectro!F30<>\"Trein. Finalizado\",\"Em Treinamento\",IF(Espectro!H30<>\"Trein. Finalizado\",\"Em Treinamento\",IF(Espectro!J30<>\"Trein. Finalizado\",\"Em Treinamento\",IF(Espectro!L30<>\"Trein. Finalizado\",\"Em Treinamento\",\"Treinamento Finalizado\"))))","v":"Em Treinamento"},null,null,{"$f":"IF('Karl fischer'!F27<>\"Trein. Finalizado\",\"Em Treinamento\",IF('Karl fischer'!H27<>\"Trein. Finalizado\",\"Em Treinamento\",IF('Karl fischer'!J27<>\"Trein. Finalizado\",\"Em Treinamento\",IF('Karl fischer'!L27<>\"Trein. Finalizado\",\"Em Treinamento\",\"Treinamento Finalizado\"))))","v":"Em Treinamento"},null,null,{"$f":"IF('Karl fischer'!F30<>\"Trein. Finalizado\",\"Em Treinamento\",IF('Karl fischer'!H30<>\"Trein. Finalizado\",\"Em Treinamento\",IF('Karl fischer'!J30<>\"Trein. Finalizado\",\"Em Treinamento\",IF('Karl fischer'!L30<>\"Trein. Finalizado\",\"Em Treinamento\",\"Treinamento Finalizado\"))))","v":"Em Treinamento"},null,null,{"$f":"IF(Agua!F27<>\"Trein. Finalizado\",\"Em Treinamento\",IF(Agua!H27<>\"Trein. Finalizado\",\"Em Treinamento\",IF(Agua!J27<>\"Trein. Finalizado\",\"Em Treinamento\",IF(Agua!L27<>\"Trein. Finalizado\",\"Em Treinamento\",\"Treinamento Finalizado\"))))","v":"Em Treinamento"},null,null,{"$f":"IF(Agua!F30<>\"Trein. Finalizado\",\"Em Treinamento\",IF(Agua!H30<>\"Trein. Finalizado\",\"Em Treinamento\",IF(Agua!J30<>\"Trein. Finalizado\",\"Em Treinamento\",IF(Agua!L30<>\"Trein. Finalizado\",\"Em Treinamento\",\"Treinamento Finalizado\"))))","v":"Em Treinamento"},null,null,{"$f":"IF(Titulação!F27<>\"Trein. Finalizado\",\"Em Treinamento\",IF(Titulação!H27<>\"Trein. Finalizado\",\"Em Treinamento\",IF(Titulação!J27<>\"Trein. Finalizado\",\"Em Treinamento\",IF(Titulação!L27<>\"Trein. Finalizado\",\"Em Treinamento\",\"Treinamento Finalizado\"))))","v":"Em Treinamento"},null,null,{"$f":"IF(Titulação!F30<>\"Trein. Finalizado\",\"Em Treinamento\",IF(Titulação!H30<>\"Trein. Finalizado\",\"Em Treinamento\",IF(Titulação!J30<>\"Trein. Finalizado\",\"Em Treinamento\",IF(Titulação!L30<>\"Trein. Finalizado\",\"Em Treinamento\",\"Treinamento Finalizado\"))))","v":"Em Treinamento"},null,null,{"$f":"IF('Peso Medio'!F27<>\"Trein. Finalizado\",\"Em Treinamento\",IF('Peso Medio'!H27<>\"Trein. Finalizado\",\"Em Treinamento\",IF('Peso Medio'!J27<>\"Trein. Finalizado\",\"Em Treinamento\",IF('Peso Medio'!L27<>\"Trein. Finalizado\",\"Em Treinamento\",\"Treinamento Finalizado\"))))","v":"Em Treinamento"},null,null,{"$f":"IF('Peso Medio'!F30<>\"Trein. Finalizado\",\"Em Treinamento\",IF('Peso Medio'!H30<>\"Trein. Finalizado\",\"Em Treinamento\",IF('Peso Medio'!J30<>\"Trein. Finalizado\",\"Em Treinamento\",IF('Peso Medio'!L30<>\"Trein. Finalizado\",\"Em Treinamento\",\"Treinamento Finalizado\"))))","v":"Em Treinamento"},null,null,{"$f":"IF('Validação '!F27<>\"Trein. Finalizado\",\"Em Treinamento\",IF('Validação '!H27<>\"Trein. Finalizado\",\"Em Treinamento\",IF('Validação '!J27<>\"Trein. Finalizado\",\"Em Treinamento\",IF('Validação '!L27<>\"Trein. Finalizado\",\"Em Treinamento\",IF('Validação '!N27<>\"Trein. Finalizado\",\"Em Treinamento\",IF('Validação '!P27<>\"Trein. Finalizado\",\"Em Treinamento\",\"Treinamento Finalizado\"))))))","v":"Em Treinamento"},null,null,{"$f":"IF('Validação '!F30<>\"Trein. Finalizado\",\"Em Treinamento\",IF('Validação '!H30<>\"Trein. Finalizado\",\"Em Treinamento\",IF('Validação '!J30<>\"Trein. Finalizado\",\"Em Treinamento\",IF('Validação '!L30<>\"Trein. Finalizado\",\"Em Treinamento\",IF('Validação '!N30<>\"Trein. Finalizado\",\"Em Treinamento\",IF('Validação '!P30<>\"Trein. Finalizado\",\"Em Treinamento\",\"Treinamento Finalizado\"))))))","v":"Em Treinamento"},null,null,{"$f":"IF('Teor A.'!F27<>\"Trein. Finalizado\",\"Em Treinamento\",IF('Teor A.'!H27<>\"Trein. Finalizado\",\"Em Treinamento\",IF('Teor A.'!J27<>\"Trein. Finalizado\",\"Em Treinamento\",\"Treinamento Finalizado\")))","v":"Em Treinamento"},null,null,{"$f":"IF('Teor A.'!F30<>\"Trein. Finalizado\",\"Em Treinamento\",IF('Teor A.'!H30<>\"Trein. Finalizado\",\"Em Treinamento\",IF('Teor A.'!J30<>\"Trein. Finalizado\",\"Em Treinamento\",\"Treinamento Finalizado\")))","v":"Em Treinamento"},null,null,{"$f":"IF(Perfil!F27<>\"Trein. Finalizado\",\"Em Treinamento\",IF(Perfil!H27<>\"Trein. Finalizado\",\"Em Treinamento\",IF(Perfil!J27<>\"Trein. Finalizado\",\"Em Treinamento\",IF(Perfil!L27<>\"Trein. Finalizado\",\"Em Treinamento\",IF(Perfil!N27<>\"Trein. Finalizado\",\"Em Treinamento\",\"Treinamento Finalizado\")))))","v":"Treinamento Finalizado"},null,null,{"$f":"IF(Perfil!F30<>\"Trein. Finalizado\",\"Em Treinamento\",IF(Perfil!H30<>\"Trein. Finalizado\",\"Em Treinamento\",IF(Perfil!J30<>\"Trein. Finalizado\",\"Em Treinamento\",IF(Perfil!L30<>\"Trein. Finalizado\",\"Em Treinamento\",IF(Perfil!N30<>\"Trein. Finalizado\",\"Em Treinamento\",\"Treinamento Finalizado\")))))","v":"Em Treinamento"}]
[]
[null,null,null,null,null,null,null,null,null,{"$f":"IF(J23=\"Treinamento Finalizado\",NOW(),\"---\")","v":"---"},null,null,{"$f":"IF(M23=\"Treinamento Finalizado\",NOW(),\"---\")","v":"---"},null,null,{"$f":"IF(P23=\"Treinamento Finalizado\",NOW(),\"---\")","v":"---"},null,null,{"$f":"IF(S23=\"Treinamento Finalizado\",NOW(),\"---\")","v":"---"},null,null,{"$f":"IF(V23=\"Treinamento Finalizado\",NOW(),\"---\")","v":"---"},null,null,{"$f":"IF(Y23=\"Treinamento Finalizado\",NOW(),\"---\")","v":"---"},null,null,{"$f":"IF(AB23=\"Treinamento Finalizado\",NOW(),\"---\")","v":"---"},null,null,{"$f":"IF(AE23=\"Treinamento Finalizado\",NOW(),\"---\")","v":"---"},null,null,{"$f":"IF(AH23=\"Treinamento Finalizado\",NOW(),\"---\")","v":"---"},null,null,{"$f":"IF(AK23=\"Treinamento Finalizado\",NOW(),\"---\")","v":"---"},null,null,{"$f":"IF(AN23=\"Treinamento Finalizado\",NOW(),\"---\")","v":"---"},null,null,{"$f":"IF(AQ23=\"Treinamento Finalizado\",NOW(),\"---\")","v":"---"},null,null,{"$f":"IF(AT23=\"Treinamento Finalizado\",NOW(),\"---\")","v":"---"},null,null,{"$f":"IF(AW23=\"Treinamento Finalizado\",NOW(),\"---\")","v":"---"},null,null,{"$f":"IF(AZ23=\"Treinamento Finalizado\",NOW(),\"---\")","v":"---"},null,null,{"$f":"IF(BC23=\"Treinamento Finalizado\",NOW(),\"---\")","v":"---"},null,null,{"$f":"IF(BF23=\"Treinamento Finalizado\",NOW(),\"---\")","v":"---"},null,null,{"$f":"IF(BI23=\"Treinamento Finalizado\",NOW(),\"---\")","v":"---"},null,null,{"$f":"IF(BL23=\"Treinamento Finalizado\",NOW(),\"---\")","v":"2023-06-09T10:45:11.160"},null,null,{"$f":"IF(BO23=\"Treinamento Finalizado\",NOW(),\"---\")","v":"---"},null,null,{"$f":"IF(BR23=\"Treinamento Finalizado\",NOW(),\"---\")","v":"---"},null,null,{"$f":"IF(BU23=\"Treinamento Finalizado\",NOW(),\"---\")","v":"---"}]
[]
[]
[null,null,null,null,null,null,null,null,null,{"$f":"IF(Geral!H40<>\"Treinamento Finalizado\",\"Em Treinamento\",IF(Geral!J40<>\"Treinamento Finalizado\",\"Em Treinamento\",IF(Geral!L40<>\"Treinamento Finalizado\",\"Em Treinamento\",IF(Geral!N40<>\"Treinamento Finalizado\",\"Em Treinamento\",IF(Geral!P40<>\"Treinamento Finalizado\",\"Em Treinamento\",IF(Geral!R40<>\"Treinamento Finalizado\",\"Em Treinamento\",IF(Geral!T40<>\"Treinamento Finalizado\",\"Em Treinamento\",IF(Geral!V40<>\"Treinamento Finalizado\",\"Em Treinamento\",IF(Geral!X40<>\"Treinamento Finalizado\",\"Em Treinamento\",IF(Geral!Z40<>\"Treinamento Finalizado\",\"Em Treinamento\",IF(Geral!AB40<>\"Treinamento Finalizado\",\"Em Treinamento\",IF(Geral!AD40<>\"Treinamento Finalizado\",\"Em Treinamento\",IF(Geral!AF40<>\"Treinamento Finalizado\",\"Em Treinamento\",IF(Geral!AH40<>\"Treinamento Finalizado\",\"Em Treinamento\",IF(Geral!AJ40<>\"Treinamento Finalizado\",\"Em Treinamento\",\"Treinamento Finalizado\")))))))))))))))","v":"Em Treinamento"},null,null,{"$f":"IF(Geral!H44<>\"Treinamento Finalizado\",\"Em Treinamento\",IF(Geral!J44<>\"Treinamento Finalizado\",\"Em Treinamento\",IF(Geral!L44<>\"Treinamento Finalizado\",\"Em Treinamento\",IF(Geral!N44<>\"Treinamento Finalizado\",\"Em Treinamento\",IF(Geral!P44<>\"Treinamento Finalizado\",\"Em Treinamento\",IF(Geral!R44<>\"Treinamento Finalizado\",\"Em Treinamento\",IF(Geral!T44<>\"Treinamento Finalizado\",\"Em Treinamento\",IF(Geral!V44<>\"Treinamento Finalizado\",\"Em Treinamento\",IF(Geral!X44<>\"Treinamento Finalizado\",\"Em Treinamento\",IF(Geral!Z44<>\"Treinamento Finalizado\",\"Em Treinamento\",IF(Geral!AB44<>\"Treinamento Finalizado\",\"Em Treinamento\",IF(Geral!AD44<>\"Treinamento Finalizado\",\"Em Treinamento\",IF(Geral!AF44<>\"Treinamento Finalizado\",\"Em Treinamento\",IF(Geral!AH44<>\"Treinamento Finalizado\",\"Em Treinamento\",IF(Geral!AJ44<>\"Treinamento Finalizado\",\"Em Treinamento\",\"Treinamento Finalizado\")))))))))))))))","v":"Em Treinamento"},null,null,{"$f":"IF(hplc!F33<>\"Trein. Finalizado\",\"Em treinamento\",IF(hplc!H33<>\"Trein. Finalizado\",\"Em treinamento\",IF(hplc!J33<>\"Trein. Finalizado\",\"Em treinamento\",IF(hplc!L33<>\"Trein. Finalizado\",\"Em treinamento\",IF(hplc!N33<>\"Trein. Finalizado\",\"Em treinamento\",IF(hplc!P33<>\"Trein. Finalizado\",\"Em treinamento\",IF(hplc!R33<>\"Trein. Finalizado\",\"Em treinamento\",IF(hplc!T33<>\"Trein. Finalizado\",\"Em treinamento\",\"Treinamento Finalizado\"))))))))","v":"Em treinamento"},null,null,{"$f":"IF(hplc!F36<>\"Trein. Finalizado\",\"Em treinamento\",IF(hplc!H36<>\"Trein. Finalizado\",\"Em treinamento\",IF(hplc!J36<>\"Trein. Finalizado\",\"Em treinamento\",IF(hplc!L36<>\"Trein. Finalizado\",\"Em treinamento\",IF(hplc!N36<>\"Trein. Finalizado\",\"Em treinamento\",IF(hplc!P36<>\"Trein. Finalizado\",\"Em treinamento\",IF(hplc!R36<>\"Trein. Finalizado\",\"Em treinamento\",IF(hplc!T36<>\"Trein. Finalizado\",\"Em treinamento\",\"Treinamento Finalizado\"))))))))","v":"Em treinamento"},null,null,{"$f":"IF(Espectro!F33<>\"Trein. Finalizado\",\"Em Treinamento\",IF(Espectro!H33<>\"Trein. Finalizado\",\"Em Treinamento\",IF(Espectro!J33<>\"Trein. Finalizado\",\"Em Treinamento\",IF(Espectro!L33<>\"Trein. Finalizado\",\"Em Treinamento\",\"Treinamento Finalizado\"))))","v":"Em Treinamento"},null,null,{"$f":"IF(Espectro!F36<>\"Trein. Finalizado\",\"Em Treinamento\",IF(Espectro!H36<>\"Trein. Finalizado\",\"Em Treinamento\",IF(Espectro!J36<>\"Trein. Finalizado\",\"Em Treinamento\",IF(Espectro!L36<>\"Trein. Finalizado\",\"Em Treinamento\",\"Treinamento Finalizado\"))))","v":"Em Treinamento"},null,null,{"$f":"IF('Karl fischer'!F33<>\"Trein. Finalizado\",\"Em Treinamento\",IF('Karl fischer'!H33<>\"Trein. Finalizado\",\"Em Treinamento\",IF('Karl fischer'!J33<>\"Trein. Finalizado\",\"Em Treinamento\",IF('Karl fischer'!L33<>\"Trein. Finalizado\",\"Em Treinamento\",\"Treinamento Finalizado\"))))","v":"Em Treinamento"},null,null,{"$f":"IF('Karl fischer'!F36<>\"Trein. Finalizado\",\"Em Treinamento\",IF('Karl fischer'!H36<>\"Trein. Finalizado\",\"Em Treinamento\",IF('Karl fischer'!J36<>\"Trein. Finalizado\",\"Em Treinamento\",IF('Karl fischer'!L36<>\"Trein. Finalizado\",\"Em Treinamento\",\"Treinamento Finalizado\"))))","v":"Em Treinamento"},null,null,{"$f":"IF(Agua!F33<>\"Trein. Finalizado\",\"Em Treinamento\",IF(Agua!H33<>\"Trein. Finalizado\",\"Em Treinamento\",IF(Agua!J33<>\"Trein. Finalizado\",\"Em Treinamento\",IF(Agua!L33<>\"Trein. Finalizado\",\"Em Treinamento\",\"Treinamento Finalizado\"))))","v":"Em Treinamento"},null,null,{"$f":"IF(Agua!F36<>\"Trein. Finalizado\",\"Em Treinamento\",IF(Agua!H36<>\"Trein. Finalizado\",\"Em Treinamento\",IF(Agua!J36<>\"Trein. Finalizado\",\"Em Treinamento\",IF(Agua!L36<>\"Trein. Finalizado\",\"Em Treinamento\",\"Treinamento Finalizado\"))))","v":"Em Treinamento"},null,null,{"$f":"IF(Titulação!F33<>\"Trein. Finalizado\",\"Em Treinamento\",IF(Titulação!H33<>\"Trein. Finalizado\",\"Em Treinamento\",IF(Titulação!J33<>\"Trein. Finalizado\",\"Em Treinamento\",IF(Titulação!L33<>\"Trein. Finalizado\",\"Em Treinamento\",\"Treinamento Finalizado\"))))","v":"Em Treinamento"},null,null,{"$f":"IF(Titulação!F36<>\"Trein. Finalizado\",\"Em Treinamento\",IF(Titulação!H36<>\"Trein. Finalizado\",\"Em Treinamento\",IF(Titulação!J36<>\"Trein. Finalizado\",\"Em Treinamento\",IF(Titulação!L36<>\"Trein. Finalizado\",\"Em Treinamento\",\"Treinamento Finalizado\"))))","v":"Em Treinamento"},null,null,{"$f":"IF('Peso Medio'!F33<>\"Trein. Finalizado\",\"Em Treinamento\",IF('Peso Medio'!H33<>\"Trein. Finalizado\",\"Em Treinamento\",IF('Peso Medio'!J33<>\"Trein. Finalizado\",\"Em Treinamento\",IF('Peso Medio'!L33<>\"Trein. Finalizado\",\"Em Treinamento\",\"Treinamento Finalizado\"))))","v":"Em Treinamento"},null,null,{"$f":"IF('Peso Medio'!F36<>\"Trein. Finalizado\",\"Em Treinamento\",IF('Peso Medio'!H36<>\"Trein. Finalizado\",\"Em Treinamento\",IF('Peso Medio'!J36<>\"Trein. Finalizado\",\"Em Treinamento\",IF('Peso Medio'!L36<>\"Trein. Finalizado\",\"Em Treinamento\",\"Treinamento Finalizado\"))))","v":"Em Treinamento"},null,null,{"$f":"IF('Validação '!F33<>\"Trein. Finalizado\",\"Em Treinamento\",IF('Validação '!H33<>\"Trein. Finalizado\",\"Em Treinamento\",IF('Validação '!J33<>\"Trein. Finalizado\",\"Em Treinamento\",IF('Validação '!L33<>\"Trein. Finalizado\",\"Em Treinamento\",IF('Validação '!N33<>\"Trein. Finalizado\",\"Em Treinamento\",IF('Validação '!P33<>\"Trein. Finalizado\",\"Em Treinamento\",\"Treinamento Finalizado\"))))))","v":"Em Treinamento"},null,null,{"$f":"IF('Validação '!F36<>\"Trein. Finalizado\",\"Em Treinamento\",IF('Validação '!H36<>\"Trein. Finalizado\",\"Em Treinamento\",IF('Validação '!J36<>\"Trein. Finalizado\",\"Em Treinamento\",IF('Validação '!L36<>\"Trein. Finalizado\",\"Em Treinamento\",IF('Validação '!N36<>\"Trein. Finalizado\",\"Em Treinamento\",IF('Validação '!P36<>\"Trein. Finalizado\",\"Em Treinamento\",\"Treinamento Finalizado\"))))))","v":"Em Treinamento"},null,null,{"$f":"IF('Teor A.'!F33<>\"Trein. Finalizado\",\"Em Treinamento\",IF('Teor A.'!H33<>\"Trein. Finalizado\",\"Em Treinamento\",IF('Teor A.'!J33<>\"Trein. Finalizado\",\"Em Treinamento\",\"Treinamento Finalizado\")))","v":"Em Treinamento"},null,null,{"$f":"IF('Teor A.'!F36<>\"Trein. Finalizado\",\"Em Treinamento\",IF('Teor A.'!H36<>\"Trein. Finalizado\",\"Em Treinamento\",IF('Teor A.'!J36<>\"Trein. Finalizado\",\"Em Treinamento\",\"Treinamento Finalizado\")))","v":"Em Treinamento"},null,null,{"$f":"IF(Perfil!F33<>\"Trein. Finalizado\",\"Em Treinamento\",IF(Perfil!H33<>\"Trein. Finalizado\",\"Em Treinamento\",IF(Perfil!J33<>\"Trein. Finalizado\",\"Em Treinamento\",IF(Perfil!L33<>\"Trein. Finalizado\",\"Em Treinamento\",IF(Perfil!N33<>\"Trein. Finalizado\",\"Em Treinamento\",\"Treinamento Finalizado\")))))","v":"Em Treinamento"},null,null,{"$f":"IF(Perfil!F36<>\"Trein. Finalizado\",\"Em Treinamento\",IF(Perfil!H36<>\"Trein. Finalizado\",\"Em Treinamento\",IF(Perfil!J36<>\"Trein. Finalizado\",\"Em Treinamento\",IF(Perfil!L36<>\"Trein. Finalizado\",\"Em Treinamento\",IF(Perfil!N36<>\"Trein. Finalizado\",\"Em Treinamento\",\"Treinamento Finalizado\")))))","v":"Em Treinamento"}]
[]
[null,null,null,null,null,null,null,null,null,{"$f":"IF(J28=\"Treinamento Finalizado\",NOW(),\"---\")","v":"---"},null,null,{"$f":"IF(M28=\"Treinamento Finalizado\",NOW(),\"---\")","v":"---"},null,null,{"$f":"IF(P28=\"Treinamento Finalizado\",NOW(),\"---\")","v":"---"},null,null,{"$f":"IF(S28=\"Treinamento Finalizado\",NOW(),\"---\")","v":"---"},null,null,{"$f":"IF(V28=\"Treinamento Finalizado\",NOW(),\"---\")","v":"---"},null,null,{"$f":"IF(Y28=\"Treinamento Finalizado\",NOW(),\"---\")","v":"---"},null,null,{"$f":"IF(AB28=\"Treinamento Finalizado\",NOW(),\"---\")","v":"---"},null,null,{"$f":"IF(AE28=\"Treinamento Finalizado\",NOW(),\"---\")","v":"---"},null,null,{"$f":"IF(AH28=\"Treinamento Finalizado\",NOW(),\"---\")","v":"---"},null,null,{"$f":"IF(AK28=\"Treinamento Finalizado\",NOW(),\"---\")","v":"---"},null,null,{"$f":"IF(AN28=\"Treinamento Finalizado\",NOW(),\"---\")","v":"---"},null,null,{"$f":"IF(AQ28=\"Treinamento Finalizado\",NOW(),\"---\")","v":"---"},null,null,{"$f":"IF(AT28=\"Treinamento Finalizado\",NOW(),\"---\")","v":"---"},null,null,{"$f":"IF(AW28=\"Treinamento Finalizado\",NOW(),\"---\")","v":"---"},null,null,{"$f":"IF(AZ28=\"Treinamento Finalizado\",NOW(),\"---\")","v":"---"},null,null,{"$f":"IF(BC28=\"Treinamento Finalizado\",NOW(),\"---\")","v":"---"},null,null,{"$f":"IF(BF28=\"Treinamento Finalizado\",NOW(),\"---\")","v":"---"},null,null,{"$f":"IF(BI28=\"Treinamento Finalizado\",NOW(),\"---\")","v":"---"},null,null,{"$f":"IF(BL28=\"Treinamento Finalizado\",NOW(),\"---\")","v":"---"},null,null,{"$f":"IF(BO28=\"Treinamento Finalizado\",NOW(),\"---\")","v":"---"},null,null,{"$f":"IF(BR28=\"Treinamento Finalizado\",NOW(),\"---\")","v":"---"},null,null,{"$f":"IF(BU28=\"Treinamento Finalizado\",NOW(),\"---\")","v":"---"}]
[]
[]
[null,null,null,null,null,null,null,null,null,{"$f":"IF(Geral!H42<>\"Treinamento Finalizado\",\"Em Treinamento\",IF(Geral!J42<>\"Treinamento Finalizado\",\"Em Treinamento\",IF(Geral!L42<>\"Treinamento Finalizado\",\"Em Treinamento\",IF(Geral!N42<>\"Treinamento Finalizado\",\"Em Treinamento\",IF(Geral!P42<>\"Treinamento Finalizado\",\"Em Treinamento\",IF(Geral!R42<>\"Treinamento Finalizado\",\"Em Treinamento\",IF(Geral!T42<>\"Treinamento Finalizado\",\"Em Treinamento\",IF(Geral!V42<>\"Treinamento Finalizado\",\"Em Treinamento\",IF(Geral!X42<>\"Treinamento Finalizado\",\"Em Treinamento\",IF(Geral!Z42<>\"Treinamento Finalizado\",\"Em Treinamento\",IF(Geral!AB42<>\"Treinamento Finalizado\",\"Em Treinamento\",IF(Geral!AD42<>\"Treinamento Finalizado\",\"Em Treinamento\",IF(Geral!AF42<>\"Treinamento Finalizado\",\"Em Treinamento\",IF(Geral!AH42<>\"Treinamento Finalizado\",\"Em Treinamento\",IF(Geral!AJ42<>\"Treinamento Finalizado\",\"Em Treinamento\",\"Treinamento Finalizado\")))))))))))))))","v":"Em Treinamento"},null,null,{"$f":"IF(Geral!H46<>\"Treinamento Finalizado\",\"Em Treinamento\",IF(Geral!J46<>\"Treinamento Finalizado\",\"Em Treinamento\",IF(Geral!L46<>\"Treinamento Finalizado\",\"Em Treinamento\",IF(Geral!N46<>\"Treinamento Finalizado\",\"Em Treinamento\",IF(Geral!P46<>\"Treinamento Finalizado\",\"Em Treinamento\",IF(Geral!R46<>\"Treinamento Finalizado\",\"Em Treinamento\",IF(Geral!T46<>\"Treinamento Finalizado\",\"Em Treinamento\",IF(Geral!V46<>\"Treinamento Finalizado\",\"Em Treinamento\",IF(Geral!X46<>\"Treinamento Finalizado\",\"Em Treinamento\",IF(Geral!Z46<>\"Treinamento Finalizado\",\"Em Treinamento\",IF(Geral!AB46<>\"Treinamento Finalizado\",\"Em Treinamento\",IF(Geral!AD46<>\"Treinamento Finalizado\",\"Em Treinamento\",IF(Geral!AF46<>\"Treinamento Finalizado\",\"Em Treinamento\",IF(Geral!AH46<>\"Treinamento Finalizado\",\"Em Treinamento\",IF(Geral!AJ46<>\"Treinamento Finalizado\",\"Em Treinamento\",\"Treinamento Finalizado\")))))))))))))))","v":"Em Treinamento"},null,null,{"$f":"IF(hplc!F40<>\"Trein. Finalizado\",\"Em treinamento\",IF(hplc!H40<>\"Trein. Finalizado\",\"Em treinamento\",IF(hplc!J40<>\"Trein. Finalizado\",\"Em treinamento\",IF(hplc!L40<>\"Trein. Finalizado\",\"Em treinamento\",IF(hplc!N40<>\"Trein. Finalizado\",\"Em treinamento\",IF(hplc!P40<>\"Trein. Finalizado\",\"Em treinamento\",IF(hplc!R40<>\"Trein. Finalizado\",\"Em treinamento\",IF(hplc!T40<>\"Trein. Finalizado\",\"Em treinamento\",\"Treinamento Finalizado\"))))))))","v":"Em treinamento"},null,null,{"$f":"IF(hplc!F44<>\"Trein. Finalizado\",\"Em treinamento\",IF(hplc!H44<>\"Trein. Finalizado\",\"Em treinamento\",IF(hplc!J44<>\"Trein. Finalizado\",\"Em treinamento\",IF(hplc!L44<>\"Trein. Finalizado\",\"Em treinamento\",IF(hplc!N44<>\"Trein. Finalizado\",\"Em treinamento\",IF(hplc!P44<>\"Trein. Finalizado\",\"Em treinamento\",IF(hplc!R44<>\"Trein. Finalizado\",\"Em treinamento\",IF(hplc!T44<>\"Trein. Finalizado\",\"Em treinamento\",\"Treinamento Finalizado\"))))))))","v":"Em treinamento"},null,null,{"$f":"IF(Espectro!F40<>\"Trein. Finalizado\",\"Em Treinamento\",IF(Espectro!H40<>\"Trein. Finalizado\",\"Em Treinamento\",IF(Espectro!J40<>\"Trein. Finalizado\",\"Em Treinamento\",IF(Espectro!L40<>\"Trein. Finalizado\",\"Em Treinamento\",\"Treinamento Finalizado\"))))","v":"Em Treinamento"},null,null,{"$f":"IF(Espectro!F44<>\"Trein. Finalizado\",\"Em Treinamento\",IF(Espectro!H44<>\"Trein. Finalizado\",\"Em Treinamento\",IF(Espectro!J44<>\"Trein. Finalizado\",\"Em Treinamento\",IF(Espectro!L44<>\"Trein. Finalizado\",\"Em Treinamento\",\"Treinamento Finalizado\"))))","v":"Em Treinamento"},null,null,{"$f":"IF('Karl fischer'!F40<>\"Trein. Finalizado\",\"Em Treinamento\",IF('Karl fischer'!H40<>\"Trein. Finalizado\",\"Em Treinamento\",IF('Karl fischer'!J40<>\"Trein. Finalizado\",\"Em Treinamento\",IF('Karl fischer'!L40<>\"Trein. Finalizado\",\"Em Treinamento\",\"Treinamento Finalizado\"))))","v":"Em Treinamento"},null,null,{"$f":"IF('Karl fischer'!F44<>\"Trein. Finalizado\",\"Em Treinamento\",IF('Karl fischer'!H44<>\"Trein. Finalizado\",\"Em Treinamento\",IF('Karl fischer'!J44<>\"Trein. Finalizado\",\"Em Treinamento\",IF('Karl fischer'!L44<>\"Trein. Finalizado\",\"Em Treinamento\",\"Treinamento Finalizado\"))))","v":"Em Treinamento"},null,null,{"$f":"IF(Agua!F40<>\"Trein. Finalizado\",\"Em Treinamento\",IF(Agua!H40<>\"Trein. Finalizado\",\"Em Treinamento\",IF(Agua!J40<>\"Trein. Finalizado\",\"Em Treinamento\",IF(Agua!L40<>\"Trein. Finalizado\",\"Em Treinamento\",\"Treinamento Finalizado\"))))","v":"Em Treinamento"},null,null,{"$f":"IF(Agua!F44<>\"Trein. Finalizado\",\"Em Treinamento\",IF('Karl fischer'!N44<>\"Trein. Finalizado\",\"Em Treinamento\",IF('Karl fischer'!P44<>\"Trein. Finalizado\",\"Em Treinamento\",IF('Karl fischer'!R44<>\"Trein. Finalizado\",\"Em Treinamento\",\"Treinamento Finalizado\"))))","v":"Em Treinamento"},null,null,{"$f":"IF(Titulação!F40<>\"Trein. Finalizado\",\"Em Treinamento\",IF(Titulação!H40<>\"Trein. Finalizado\",\"Em Treinamento\",IF(Titulação!J40<>\"Trein. Finalizado\",\"Em Treinamento\",IF(Titulação!L40<>\"Trein. Finalizado\",\"Em Treinamento\",\"Treinamento Finalizado\"))))","v":"Em Treinamento"},null,null,{"$f":"IF(Titulação!F44<>\"Trein. Finalizado\",\"Em Treinamento\",IF(Titulação!H44<>\"Trein. Finalizado\",\"Em Treinamento\",IF(Titulação!J44<>\"Trein. Finalizado\",\"Em Treinamento\",IF(Titulação!L44<>\"Trein. Finalizado\",\"Em Treinamento\",\"Treinamento Finalizado\"))))","v":"Em Treinamento"},null,null,{"$f":"IF('Peso Medio'!F40<>\"Trein. Finalizado\",\"Em Treinamento\",IF('Peso Medio'!H40<>\"Trein. Finalizado\",\"Em Treinamento\",IF('Peso Medio'!J40<>\"Trein. Finalizado\",\"Em Treinamento\",IF('Peso Medio'!L40<>\"Trein. Finalizado\",\"Em Treinamento\",\"Treinamento Finalizado\"))))","v":"Em Treinamento"},null,null,{"$f":"IF('Peso Medio'!F44<>\"Trein. Finalizado\",\"Em Treinamento\",IF('Peso Medio'!H44<>\"Trein. Finalizado\",\"Em Treinamento\",IF('Peso Medio'!J44<>\"Trein. Finalizado\",\"Em Treinamento\",IF('Peso Medio'!L44<>\"Trein. Finalizado\",\"Em Treinamento\",\"Treinamento Finalizado\"))))","v":"Em Treinamento"},null,null,{"$f":"IF('Validação '!F40<>\"Trein. Finalizado\",\"Em Treinamento\",IF('Validação '!H40<>\"Trein. Finalizado\",\"Em Treinamento\",IF('Validação '!J40<>\"Trein. Finalizado\",\"Em Treinamento\",IF('Validação '!L40<>\"Trein. Finalizado\",\"Em Treinamento\",IF('Validação '!N40<>\"Trein. Finalizado\",\"Em Treinamento\",IF('Validação '!P40<>\"Trein. Finalizado\",\"Em Treinamento\",\"Treinamento Finalizado\"))))))","v":"Em Treinamento"},null,null,{"$f":"IF('Validação '!F44<>\"Trein. Finalizado\",\"Em Treinamento\",IF('Validação '!H44<>\"Trein. Finalizado\",\"Em Treinamento\",IF('Validação '!J44<>\"Trein. Finalizado\",\"Em Treinamento\",IF('Validação '!L44<>\"Trein. Finalizado\",\"Em Treinamento\",IF('Validação '!N44<>\"Trein. Finalizado\",\"Em Treinamento\",IF('Validação '!P44<>\"Trein. Finalizado\",\"Em Treinamento\",\"Treinamento Finalizado\"))))))","v":"Em Treinamento"},null,null,{"$f":"IF('Teor A.'!F40<>\"Trein. Finalizado\",\"Em Treinamento\",IF('Teor A.'!H40<>\"Trein. Finalizado\",\"Em Treinamento\",IF('Teor A.'!J40<>\"Trein. Finalizado\",\"Em Treinamento\",\"Treinamento Finalizado\")))","v":"Em Treinamento"},null,null,{"$f":"IF('Teor A.'!F44<>\"Trein. Finalizado\",\"Em Treinamento\",IF('Teor A.'!H44<>\"Trein. Finalizado\",\"Em Treinamento\",IF('Teor A.'!J44<>\"Trein. Finalizado\",\"Em Treinamento\",\"Treinamento Finalizado\")))","v":"Em Treinamento"},null,null,{"$f":"IF(Perfil!F40<>\"Trein. Finalizado\",\"Em Treinamento\",IF(Perfil!H40<>\"Trein. Finalizado\",\"Em Treinamento\",IF(Perfil!J40<>\"Trein. Finalizado\",\"Em Treinamento\",IF(Perfil!L40<>\"Trein. Finalizado\",\"Em Treinamento\",IF(Perfil!N40<>\"Trein. Finalizado\",\"Em Treinamento\",\"Treinamento Finalizado\")))))","v":"Em Treinamento"},null,null,{"$f":"IF(Perfil!F44<>\"Trein. Finalizado\",\"Em Treinamento\",IF(Perfil!H44<>\"Trein. Finalizado\",\"Em Treinamento\",IF(Perfil!J44<>\"Trein. Finalizado\",\"Em Treinamento\",IF(Perfil!L44<>\"Trein. Finalizado\",\"Em Treinamento\",IF(Perfil!N44<>\"Trein. Finalizado\",\"Em Treinamento\",\"Treinamento Finalizado\")))))","v":"Em Treinamento"}]
[]
[null,null,null,null,null,null,null,null,null,{"$f":"IF(J33=\"Treinamento Finalizado\",NOW(),\"---\")","v":"---"},null,null,{"$f":"IF(M33=\"Treinamento Finalizado\",NOW(),\"---\")","v":"---"},null,null,{"$f":"IF(P33=\"Treinamento Finalizado\",NOW(),\"---\")","v":"---"},null,null,{"$f":"IF(S33=\"Treinamento Finalizado\",NOW(),\"---\")","v":"---"},null,null,{"$f":"IF(V33=\"Treinamento Finalizado\",NOW(),\"---\")","v":"---"},null,null,{"$f":"IF(Y33=\"Treinamento Finalizado\",NOW(),\"---\")","v":"---"},null,null,{"$f":"IF(AB33=\"Treinamento Finalizado\",NOW(),\"---\")","v":"---"},null,null,{"$f":"IF(AE33=\"Treinamento Finalizado\",NOW(),\"---\")","v":"---"},null,null,{"$f":"IF(AH33=\"Treinamento Finalizado\",NOW(),\"---\")","v":"---"},null,null,{"$f":"IF(AK33=\"Treinamento Finalizado\",NOW(),\"---\")","v":"---"},null,null,{"$f":"IF(AN33=\"Treinamento Finalizado\",NOW(),\"---\")","v":"---"},null,null,{"$f":"IF(AQ33=\"Treinamento Finalizado\",NOW(),\"---\")","v":"---"},null,null,{"$f":"IF(AT33=\"Treinamento Finalizado\",NOW(),\"---\")","v":"---"},null,null,{"$f":"IF(AW33=\"Treinamento Finalizado\",NOW(),\"---\")","v":"---"},null,null,{"$f":"IF(AZ33=\"Treinamento Finalizado\",NOW(),\"---\")","v":"---"},null,null,{"$f":"IF(BC33=\"Treinamento Finalizado\",NOW(),\"---\")","v":"---"},null,null,{"$f":"IF(BF33=\"Treinamento Finalizado\",NOW(),\"---\")","v":"---"},null,null,{"$f":"IF(BI33=\"Treinamento Finalizado\",NOW(),\"---\")","v":"---"},null,null,{"$f":"IF(BL33=\"Treinamento Finalizado\",NOW(),\"---\")","v":"---"},null,null,{"$f":"IF(BO33=\"Treinamento Finalizado\",NOW(),\"---\")","v":"---"},null,null,{"$f":"IF(BR33=\"Treinamento Finalizado\",NOW(),\"---\")","v":"---"},null,null,{"$f":"IF(BU33=\"Treinamento Finalizado\",NOW(),\"---\")","v":"---"}]
[]
[]
[null,null,null,null,null,null,null,null,null,{"$f":"IF(Geral!H50<>\"Treinamento Finalizado\",\"Em Treinamento\",IF(Geral!J50<>\"Treinamento Finalizado\",\"Em Treinamento\",IF(Geral!L50<>\"Treinamento Finalizado\",\"Em Treinamento\",IF(Geral!N50<>\"Treinamento Finalizado\",\"Em Treinamento\",IF(Geral!P50<>\"Treinamento Finalizado\",\"Em Treinamento\",IF(Geral!R50<>\"Treinamento Finalizado\",\"Em Treinamento\",IF(Geral!T50<>\"Treinamento Finalizado\",\"Em Treinamento\",IF(Geral!V50<>\"Treinamento Finalizado\",\"Em Treinamento\",IF(Geral!X50<>\"Treinamento Finalizado\",\"Em Treinamento\",IF(Geral!Z50<>\"Treinamento Finalizado\",\"Em Treinamento\",IF(Geral!AB50<>\"Treinamento Finalizado\",\"Em Treinamento\",IF(Geral!AD50<>\"Treinamento Finalizado\",\"Em Treinamento\",IF(Geral!AF50<>\"Treinamento Finalizado\",\"Em Treinamento\",IF(Geral!AH50<>\"Treinamento Finalizado\",\"Em Treinamento\",IF(Geral!AJ50<>\"Treinamento Finalizado\",\"Em Treinamento\",\"Treinamento Finalizado\")))))))))))))))","v":"Em Treinamento"},null,null,{"$f":"IF(Geral!H53<>\"Treinamento Finalizado\",\"Em Treinamento\",IF(Geral!J53<>\"Treinamento Finalizado\",\"Em Treinamento\",IF(Geral!L580<>\"Treinamento Finalizado\",\"Em Treinamento\",IF(Geral!N53<>\"Treinamento Finalizado\",\"Em Treinamento\",IF(Geral!P53<>\"Treinamento Finalizado\",\"Em Treinamento\",IF(Geral!R53<>\"Treinamento Finalizado\",\"Em Treinamento\",IF(Geral!T53<>\"Treinamento Finalizado\",\"Em Treinamento\",IF(Geral!V53<>\"Treinamento Finalizado\",\"Em Treinamento\",IF(Geral!X53<>\"Treinamento Finalizado\",\"Em Treinamento\",IF(Geral!Z53<>\"Treinamento Finalizado\",\"Em Treinamento\",IF(Geral!AB53<>\"Treinamento Finalizado\",\"Em Treinamento\",IF(Geral!AD53<>\"Treinamento Finalizado\",\"Em Treinamento\",IF(Geral!AF53<>\"Treinamento Finalizado\",\"Em Treinamento\",IF(Geral!AH53<>\"Treinamento Finalizado\",\"Em Treinamento\",IF(Geral!AJ53<>\"Treinamento Finalizado\",\"Em Treinamento\",\"Treinamento Finalizado\")))))))))))))))","v":"Em Treinamento"},null,null,{"$f":"IF(hplc!F47<>\"Trein. Finalizado\",\"Em treinamento\",IF(hplc!H47<>\"Trein. Finalizado\",\"Em treinamento\",IF(hplc!J47<>\"Trein. Finalizado\",\"Em treinamento\",IF(hplc!L47<>\"Trein. Finalizado\",\"Em treinamento\",IF(hplc!N47<>\"Trein. Finalizado\",\"Em treinamento\",IF(hplc!P47<>\"Trein. Finalizado\",\"Em treinamento\",IF(hplc!R47<>\"Trein. Finalizado\",\"Em treinamento\",IF(hplc!T47<>\"Trein. Finalizado\",\"Em treinamento\",\"Treinamento Finalizado\"))))))))","v":"Em treinamento"},null,null,{"$f":"IF(hplc!F51<>\"Trein. Finalizado\",\"Em treinamento\",IF(hplc!H51<>\"Trein. Finalizado\",\"Em treinamento\",IF(hplc!J51<>\"Trein. Finalizado\",\"Em treinamento\",IF(hplc!L51<>\"Trein. Finalizado\",\"Em treinamento\",IF(hplc!N51<>\"Trein. Finalizado\",\"Em treinamento\",IF(hplc!P51<>\"Trein. Finalizado\",\"Em treinamento\",IF(hplc!R51<>\"Trein. Finalizado\",\"Em treinamento\",IF(hplc!T51<>\"Trein. Finalizado\",\"Em treinamento\",\"Treinamento Finalizado\"))))))))","v":"Em treinamento"},null,null,{"$f":"IF(Espectro!F47<>\"Trein. Finalizado\",\"Em Treinamento\",IF(Espectro!H47<>\"Trein. Finalizado\",\"Em Treinamento\",IF(Espectro!J47<>\"Trein. Finalizado\",\"Em Treinamento\",IF(Espectro!L47<>\"Trein. Finalizado\",\"Em Treinamento\",\"Treinamento Finalizado\"))))","v":"Em Treinamento"},null,null,{"$f":"IF(Espectro!F51<>\"Trein. Finalizado\",\"Em Treinamento\",IF(Espectro!H51<>\"Trein. Finalizado\",\"Em Treinamento\",IF(Espectro!J51<>\"Trein. Finalizado\",\"Em Treinamento\",IF(Espectro!L51<>\"Trein. Finalizado\",\"Em Treinamento\",\"Treinamento Finalizado\"))))","v":"Em Treinamento"},null,null,{"$f":"IF('Karl fischer'!F47<>\"Trein. Finalizado\",\"Em Treinamento\",IF('Karl fischer'!H47<>\"Trein. Finalizado\",\"Em Treinamento\",IF('Karl fischer'!J47<>\"Trein. Finalizado\",\"Em Treinamento\",IF('Karl fischer'!L47<>\"Trein. Finalizado\",\"Em Treinamento\",\"Treinamento Finalizado\"))))","v":"Em Treinamento"},null,null,{"$f":"IF('Karl fischer'!F51<>\"Trein. Finalizado\",\"Em Treinamento\",IF('Karl fischer'!H51<>\"Trein. Finalizado\",\"Em Treinamento\",IF('Karl fischer'!J51<>\"Trein. Finalizado\",\"Em Treinamento\",IF('Karl fischer'!L51<>\"Trein. Finalizado\",\"Em Treinamento\",\"Treinamento Finalizado\"))))","v":"Em Treinamento"},null,null,{"$f":"IF(Agua!F47<>\"Trein. Finalizado\",\"Em Treinamento\",IF(Agua!H47<>\"Trein. Finalizado\",\"Em Treinamento\",IF(Agua!J47<>\"Trein. Finalizado\",\"Em Treinamento\",IF(Agua!L47<>\"Trein. Finalizado\",\"Em Treinamento\",\"Treinamento Finalizado\"))))","v":"Em Treinamento"},null,null,{"$f":"IF(Agua!F51<>\"Trein. Finalizado\",\"Em Treinamento\",IF(Agua!H51<>\"Trein. Finalizado\",\"Em Treinamento\",IF(Agua!J51<>\"Trein. Finalizado\",\"Em Treinamento\",IF(Agua!L51<>\"Trein. Finalizado\",\"Em Treinamento\",\"Treinamento Finalizado\"))))","v":"Em Treinamento"},null,null,{"$f":"IF(Titulação!F47<>\"Trein. Finalizado\",\"Em Treinamento\",IF(Titulação!H47<>\"Trein. Finalizado\",\"Em Treinamento\",IF(Titulação!J47<>\"Trein. Finalizado\",\"Em Treinamento\",IF(Titulação!L47<>\"Trein. Finalizado\",\"Em Treinamento\",\"Treinamento Finalizado\"))))","v":"Em Treinamento"},null,null,{"$f":"IF(Titulação!F51<>\"Trein. Finalizado\",\"Em Treinamento\",IF(Titulação!H51<>\"Trein. Finalizado\",\"Em Treinamento\",IF(Titulação!J51<>\"Trein. Finalizado\",\"Em Treinamento\",IF(Titulação!L51<>\"Trein. Finalizado\",\"Em Treinamento\",\"Treinamento Finalizado\"))))","v":"Em Treinamento"},null,null,{"$f":"IF('Peso Medio'!F47<>\"Trein. Finalizado\",\"Em Treinamento\",IF('Peso Medio'!H47<>\"Trein. Finalizado\",\"Em Treinamento\",IF('Peso Medio'!J47<>\"Trein. Finalizado\",\"Em Treinamento\",IF('Peso Medio'!L47<>\"Trein. Finalizado\",\"Em Treinamento\",\"Treinamento Finalizado\"))))","v":"Em Treinamento"},null,null,{"$f":"IF('Peso Medio'!F51<>\"Trein. Finalizado\",\"Em Treinamento\",IF('Peso Medio'!H51<>\"Trein. Finalizado\",\"Em Treinamento\",IF('Peso Medio'!J51<>\"Trein. Finalizado\",\"Em Treinamento\",IF('Peso Medio'!L51<>\"Trein. Finalizado\",\"Em Treinamento\",\"Treinamento Finalizado\"))))","v":"Em Treinamento"},null,null,{"$f":"IF('Validação '!F47<>\"Trein. Finalizado\",\"Em Treinamento\",IF('Validação '!H47<>\"Trein. Finalizado\",\"Em Treinamento\",IF('Validação '!J47<>\"Trein. Finalizado\",\"Em Treinamento\",IF('Validação '!L47<>\"Trein. Finalizado\",\"Em Treinamento\",IF('Validação '!N47<>\"Trein. Finalizado\",\"Em Treinamento\",IF('Validação '!P47<>\"Trein. Finalizado\",\"Em Treinamento\",\"Treinamento Finalizado\"))))))","v":"Em Treinamento"},null,null,{"$f":"IF('Validação '!F51<>\"Trein. Finalizado\",\"Em Treinamento\",IF('Validação '!H51<>\"Trein. Finalizado\",\"Em Treinamento\",IF('Validação '!J51<>\"Trein. Finalizado\",\"Em Treinamento\",IF('Validação '!L51<>\"Trein. Finalizado\",\"Em Treinamento\",IF('Validação '!N51<>\"Trein. Finalizado\",\"Em Treinamento\",IF('Validação '!P51<>\"Trein. Finalizado\",\"Em Treinamento\",\"Treinamento Finalizado\"))))))","v":"Em Treinamento"},null,null,{"$f":"IF('Teor A.'!F47<>\"Trein. Finalizado\",\"Em Treinamento\",IF('Teor A.'!H47<>\"Trein. Finalizado\",\"Em Treinamento\",IF('Teor A.'!J47<>\"Trein. Finalizado\",\"Em Treinamento\",\"Treinamento Finalizado\")))","v":"Em Treinamento"},null,null,{"$f":"IF('Teor A.'!F51<>\"Trein. Finalizado\",\"Em Treinamento\",IF('Teor A.'!H51<>\"Trein. Finalizado\",\"Em Treinamento\",IF('Teor A.'!J51<>\"Trein. Finalizado\",\"Em Treinamento\",\"Treinamento Finalizado\")))","v":"Em Treinamento"},null,null,{"$f":"IF(Perfil!F47<>\"Trein. Finalizado\",\"Em Treinamento\",IF(Perfil!H47<>\"Trein. Finalizado\",\"Em Treinamento\",IF(Perfil!J47<>\"Trein. Finalizado\",\"Em Treinamento\",IF(Perfil!M48<>\"Trein. Finalizado\",\"Em Treinamento\",IF(Perfil!N47<>\"Trein. Finalizado\",\"Em Treinamento\",\"Treinamento Finalizado\")))))","v":"Em Treinamento"},null,null,{"$f":"IF(Perfil!F51<>\"Trein. Finalizado\",\"Em Treinamento\",IF(Perfil!H51<>\"Trein. Finalizado\",\"Em Treinamento\",IF(Perfil!J51<>\"Trein. Finalizado\",\"Em Treinamento\",IF(Perfil!L51<>\"Trein. Finalizado\",\"Em Treinamento\",IF(Perfil!N51<>\"Trein. Finalizado\",\"Em Treinamento\",\"Treinamento Finalizado\")))))","v":"Em Treinamento"}]
[]
[null,null,null,null,null,null,null,null,null,{"$f":"IF(J38=\"Treinamento Finalizado\",NOW(),\"---\")","v":"---"},null,null,{"$f":"IF(M38=\"Treinamento Finalizado\",NOW(),\"---\")","v":"---"},null,null,{"$f":"IF(P38=\"Treinamento Finalizado\",NOW(),\"---\")","v":"---"},null,null,{"$f":"IF(S38=\"Treinamento Finalizado\",NOW(),\"---\")","v":"---"},null,null,{"$f":"IF(V38=\"Treinamento Finalizado\",NOW(),\"---\")","v":"---"},null,null,{"$f":"IF(Y38=\"Treinamento Finalizado\",NOW(),\"---\")","v":"---"},null,null,{"$f":"IF(AB38=\"Treinamento Finalizado\",NOW(),\"---\")","v":"---"},null,null,{"$f":"IF(AE38=\"Treinamento Finalizado\",NOW(),\"---\")","v":"---"},null,null,{"$f":"IF(AH38=\"Treinamento Finalizado\",NOW(),\"---\")","v":"---"},null,null,{"$f":"IF(AK38=\"Treinamento Finalizado\",NOW(),\"---\")","v":"---"},null,null,{"$f":"IF(AN38=\"Treinamento Finalizado\",NOW(),\"---\")","v":"---"},null,null,{"$f":"IF(AQ38=\"Treinamento Finalizado\",NOW(),\"---\")","v":"---"},null,null,{"$f":"IF(AT38=\"Treinamento Finalizado\",NOW(),\"---\")","v":"---"},null,null,{"$f":"IF(AW38=\"Treinamento Finalizado\",NOW(),\"---\")","v":"---"},null,null,{"$f":"IF(AZ38=\"Treinamento Finalizado\",NOW(),\"---\")","v":"---"},null,null,{"$f":"IF(BC38=\"Treinamento Finalizado\",NOW(),\"---\")","v":"---"},null,null,{"$f":"IF(BF38=\"Treinamento Finalizado\",NOW(),\"---\")","v":"---"},null,null,{"$f":"IF(BI38=\"Treinamento Finalizado\",NOW(),\"---\")","v":"---"},null,null,{"$f":"IF(BL38=\"Treinamento Finalizado\",NOW(),\"---\")","v":"---"},null,null,{"$f":"IF(BO38=\"Treinamento Finalizado\",NOW(),\"---\")","v":"---"},null,null,{"$f":"IF(BR38=\"Treinamento Finalizado\",NOW(),\"---\")","v":"---"},null,null,{"$f":"IF(BU38=\"Treinamento Finalizado\",NOW(),\"---\")","v":"---"}]
[]
[]
[null,null,null,null,null,null,null,null,null,{"$f":"IF(Geral!H57<>\"Treinamento Finalizado\",\"Em Treinamento\",IF(Geral!J57<>\"Treinamento Finalizado\",\"Em Treinamento\",IF(Geral!L57<>\"Treinamento Finalizado\",\"Em Treinamento\",IF(Geral!N57<>\"Treinamento Finalizado\",\"Em Treinamento\",IF(Geral!P57<>\"Treinamento Finalizado\",\"Em Treinamento\",IF(Geral!R57<>\"Treinamento Finalizado\",\"Em Treinamento\",IF(Geral!T57<>\"Treinamento Finalizado\",\"Em Treinamento\",IF(Geral!V57<>\"Treinamento Finalizado\",\"Em Treinamento\",IF(Geral!X57<>\"Treinamento Finalizado\",\"Em Treinamento\",IF(Geral!Z57<>\"Treinamento Finalizado\",\"Em Treinamento\",IF(Geral!AB57<>\"Treinamento Finalizado\",\"Em Treinamento\",IF(Geral!AD57<>\"Treinamento Finalizado\",\"Em Treinamento\",IF(Geral!AF57<>\"Treinamento Finalizado\",\"Em Treinamento\",IF(Geral!AH57<>\"Treinamento Finalizado\",\"Em Treinamento\",IF(Geral!AJ57<>\"Treinamento Finalizado\",\"Em Treinamento\",\"Treinamento Finalizado\")))))))))))))))","v":"Em Treinamento"},null,null,null,null,null,{"$f":"IF(hplc!F55<>\"Trein. Finalizado\",\"Em treinamento\",IF(hplc!H55<>\"Trein. Finalizado\",\"Em treinamento\",IF(hplc!J55<>\"Trein. Finalizado\",\"Em treinamento\",IF(hplc!L55<>\"Trein. Finalizado\",\"Em treinamento\",IF(hplc!N55<>\"Trein. Finalizado\",\"Em treinamento\",IF(hplc!P55<>\"Trein. Finalizado\",\"Em treinamento\",IF(hplc!R55<>\"Trein. Finalizado\",\"Em treinamento\",IF(hplc!T55<>\"Trein. Finalizado\",\"Em treinamento\",\"Treinamento Finalizado\"))))))))","v":"Em treinamento"},null,null,"**",null,null,{"$f":"IF(Espectro!F55<>\"Trein. Finalizado\",\"Em Treinamento\",IF(Espectro!H55<>\"Trein. Finalizado\",\"Em Treinamento\",IF(Espectro!J55<>\"Trein. Finalizado\",\"Em Treinamento\",IF(Espectro!L55<>\"Trein. Finalizado\",\"Em Treinamento\",\"Treinamento Finalizado\"))))","v":"Em Treinamento"},null,null,null,null,null,{"$f":"IF('Karl fischer'!F55<>\"Trein. Finalizado\",\"Em Treinamento\",IF('Karl fischer'!H55<>\"Trein. Finalizado\",\"Em Treinamento\",IF('Karl fischer'!J55<>\"Trein. Finalizado\",\"Em Treinamento\",IF('Karl fischer'!L55<>\"Trein. Finalizado\",\"Em Treinamento\",\"Treinamento Finalizado\"))))","v":"Em Treinamento"},null,null,null,null,null,{"$f":"IF(Agua!F55<>\"Trein. Finalizado\",\"Em Treinamento\",IF(Agua!H55<>\"Trein. Finalizado\",\"Em Treinamento\",IF(Agua!J55<>\"Trein. Finalizado\",\"Em Treinamento\",IF(Agua!L55<>\"Trein. Finalizado\",\"Em Treinamento\",\"Treinamento Finalizado\"))))","v":"Em Treinamento"},null,null,null,null,null,{"$f":"IF(Titulação!F55<>\"Trein. Finalizado\",\"Em Treinamento\",IF(Titulação!H55<>\"Trein. Finalizado\",\"Em Treinamento\",IF(Titulação!J55<>\"Trein. Finalizado\",\"Em Treinamento\",IF(Titulação!L55<>\"Trein. Finalizado\",\"Em Treinamento\",\"Treinamento Finalizado\"))))","v":"Em Treinamento"},null,null,null,null,null,{"$f":"IF('Peso Medio'!F55<>\"Trein. Finalizado\",\"Em Treinamento\",IF('Peso Medio'!H55<>\"Trein. Finalizado\",\"Em Treinamento\",IF('Peso Medio'!J55<>\"Trein. Finalizado\",\"Em Treinamento\",IF('Peso Medio'!L55<>\"Trein. Finalizado\",\"Em Treinamento\",\"Treinamento Finalizado\"))))","v":"Em Treinamento"},null,null,null,null,null,{"$f":"IF('Validação '!F55<>\"Trein. Finalizado\",\"Em Treinamento\",IF('Validação '!H55<>\"Trein. Finalizado\",\"Em Treinamento\",IF('Validação '!J55<>\"Trein. Finalizado\",\"Em Treinamento\",IF('Validação '!L55<>\"Trein. Finalizado\",\"Em Treinamento\",IF('Validação '!N55<>\"Trein. Finalizado\",\"Em Treinamento\",IF('Validação '!P55<>\"Trein. Finalizado\",\"Em Treinamento\",\"Treinamento Finalizado\"))))))","v":"Em Treinamento"},null,null,null,null,null,{"$f":"IF('Teor A.'!F55<>\"Trein. Finalizado\",\"Em Treinamento\",IF('Teor A.'!H55<>\"Trein. Finalizado\",\"Em Treinamento\",IF('Teor A.'!J55<>\"Trein. Finalizado\",\"Em Treinamento\",\"Treinamento Finalizado\")))","v":"Em Treinamento"},null,null,null,null,null,{"$f":"IF(Perfil!F55<>\"Trein. Finalizado\",\"Em Treinamento\",IF(Perfil!H55<>\"Trein. Finalizado\",\"Em Treinamento\",IF(Perfil!J55<>\"Trein. Finalizado\",\"Em Treinamento\",IF(Perfil!L55<>\"Trein. Finalizado\",\"Em Treinamento\",IF(Perfil!N55<>\"Trein. Finalizado\",\"Em Treinamento\",\"Treinamento Finalizado\")))))","v":"Em Treinamento"}]
[]
[null,null,null,null,null,null,null,null,null,{"$f":"IF(J43=\"Treinamento Finalizado\",NOW(),\"---\")","v":"---"},null,null,{"$f":"IF(M43=\"Treinamento Finalizado\",NOW(),\"---\")","v":"---"},null,null,{"$f":"IF(P43=\"Treinamento Finalizado\",NOW(),\"---\")","v":"---"},null,null,{"$f":"IF(S43=\"Treinamento Finalizado\",NOW(),\"---\")","v":"---"},null,null,{"$f":"IF(V43=\"Treinamento Finalizado\",NOW(),\"---\")","v":"---"},null,null,{"$f":"IF(Y43=\"Treinamento Finalizado\",NOW(),\"---\")","v":"---"},null,null,{"$f":"IF(AB43=\"Treinamento Finalizado\",NOW(),\"---\")","v":"---"},null,null,{"$f":"IF(AE43=\"Treinamento Finalizado\",NOW(),\"---\")","v":"---"},null,null,{"$f":"IF(AH43=\"Treinamento Finalizado\",NOW(),\"---\")","v":"---"},null,null,{"$f":"IF(AK43=\"Treinamento Finalizado\",NOW(),\"---\")","v":"---"},null,null,{"$f":"IF(AN43=\"Treinamento Finalizado\",NOW(),\"---\")","v":"---"},null,null,{"$f":"IF(AQ43=\"Treinamento Finalizado\",NOW(),\"---\")","v":"---"},null,null,{"$f":"IF(AT43=\"Treinamento Finalizado\",NOW(),\"---\")","v":"---"},null,null,{"$f":"IF(AW43=\"Treinamento Finalizado\",NOW(),\"---\")","v":"---"},null,null,{"$f":"IF(AZ43=\"Treinamento Finalizado\",NOW(),\"---\")","v":"---"},null,null,{"$f":"IF(BC43=\"Treinamento Finalizado\",NOW(),\"---\")","v":"---"},null,null,{"$f":"IF(BF43=\"Treinamento Finalizado\",NOW(),\"---\")","v":"---"},null,null,{"$f":"IF(BI43=\"Treinamento Finalizado\",NOW(),\"---\")","v":"---"},null,null,{"$f":"IF(BL43=\"Treinamento Finalizado\",NOW(),\"---\")","v":"---"},null,null,{"$f":"IF(BO43=\"Treinamento Finalizado\",NOW(),\"---\")","v":"---"},null,null,{"$f":"IF(BR43=\"Treinamento Finalizado\",NOW(),\"---\")","v":"---"},null,null,{"$f":"IF(BU43=\"Treinamento Finalizado\",NOW(),\"---\")","v":"---"}]
[]
[]
[null,null,null,null,null,null,null,null,null,null,null,null,null,null,null,null,null,null,null,null,null,null,null,null,"***",null,null,null,null,null,"***",null,null,null,null,null,"***",null,null,null,null,null,"***",null,null,null,null,null,"***",null,null,null,null,null,"***",null,null,null,null,null,"***",null,null,null,null,null,"***",null,null,null,null,null,"***"]
[]
[null,null,null,null,null,null,null,null,null,{"$f":"IF(J48=\"Treinamento Finalizado\",NOW(),\"---\")","v":"---"},null,null,{"$f":"IF(M48=\"Treinamento Finalizado\",NOW(),\"---\")","v":"---"},null,null,{"$f":"IF(P48=\"Treinamento Finalizado\",NOW(),\"---\")","v":"---"},null,null,{"$f":"IF(S48=\"Treinamento Finalizado\",NOW(),\"---\")","v":"---"},null,null,{"$f":"IF(V48=\"Treinamento Finalizado\",NOW(),\"---\")","v":"---"},null,null,{"$f":"IF(Y48=\"Treinamento Finalizado\",NOW(),\"---\")","v":"---"},null,null,{"$f":"IF(AB48=\"Treinamento Finalizado\",NOW(),\"---\")","v":"---"},null,null,{"$f":"IF(AE48=\"Treinamento Finalizado\",NOW(),\"---\")","v":"---"},null,null,{"$f":"IF(AH48=\"Treinamento Finalizado\",NOW(),\"---\")","v":"---"},null,null,{"$f":"IF(AK48=\"Treinamento Finalizado\",NOW(),\"---\")","v":"---"},null,null,{"$f":"IF(AN48=\"Treinamento Finalizado\",NOW(),\"---\")","v":"---"},null,null,{"$f":"IF(AQ48=\"Treinamento Finalizado\",NOW(),\"---\")","v":"---"},null,null,{"$f":"IF(AT48=\"Treinamento Finalizado\",NOW(),\"---\")","v":"---"},null,null,{"$f":"IF(AW48=\"Treinamento Finalizado\",NOW(),\"---\")","v":"---"},null,null,{"$f":"IF(AZ48=\"Treinamento Finalizado\",NOW(),\"---\")","v":"---"},null,null,{"$f":"IF(BC48=\"Treinamento Finalizado\",NOW(),\"---\")","v":"---"},null,null,{"$f":"IF(BF48=\"Treinamento Finalizado\",NOW(),\"---\")","v":"---"},null,null,{"$f":"IF(BI48=\"Treinamento Finalizado\",NOW(),\"---\")","v":"---"},null,null,{"$f":"IF(BL48=\"Treinamento Finalizado\",NOW(),\"---\")","v":"---"},null,null,{"$f":"IF(BO48=\"Treinamento Finalizado\",NOW(),\"---\")","v":"---"},null,null,{"$f":"IF(BR48=\"Treinamento Finalizado\",NOW(),\"---\")","v":"---"},null,null,{"$f":"IF(BU48=\"Treinamento Finalizado\",NOW(),\"---\")","v":"---"}]
[]
[]
[]
[]
[null,null,null,null,null,null,null,null,null,{"$f":"IF(J53=\"Apto\",NOW(),\"---\")","v":"---"},null,null,{"$f":"IF(M53=\"Apto\",NOW(),\"---\")","v":"---"},null,null,{"$f":"IF(P53=\"Apto\",NOW(),\"---\")","v":"---"},null,null,{"$f":"IF(S53=\"Apto\",NOW(),\"---\")","v":"---"},null,null,{"$f":"IF(V53=\"Treinamento Finalizado\",NOW(),\"---\")","v":"---"},null,null,{"$f":"IF(Y53=\"Treinamento Finalizado\",NOW(),\"---\")","v":"---"},null,null,{"$f":"IF(AB53=\"Treinamento Finalizado\",NOW(),\"---\")","v":"---"},null,null,{"$f":"IF(AE53=\"Treinamento Finalizado\",NOW(),\"---\")","v":"---"},null,null,{"$f":"IF(AH53=\"Treinamento Finalizado\",NOW(),\"---\")","v":"---"},null,null,{"$f":"IF(AK53=\"Treinamento Finalizado\",NOW(),\"---\")","v":"---"},null,null,{"$f":"IF(AN53=\"Treinamento Finalizado\",NOW(),\"---\")","v":"---"},null,null,{"$f":"IF(AQ53=\"Treinamento Finalizado\",NOW(),\"---\")","v":"---"},null,null,{"$f":"IF(AT53=\"Treinamento Finalizado\",NOW(),\"---\")","v":"---"},null,null,{"$f":"IF(AW53=\"Treinamento Finalizado\",NOW(),\"---\")","v":"---"},null,null,{"$f":"IF(AZ53=\"Treinamento Finalizado\",NOW(),\"---\")","v":"---"},null,null,{"$f":"IF(BC53=\"Treinamento Finalizado\",NOW(),\"---\")","v":"---"},null,null,{"$f":"IF(BF53=\"Treinamento Finalizado\",NOW(),\"---\")","v":"---"},null,null,{"$f":"IF(BI53=\"Treinamento Finalizado\",NOW(),\"---\")","v":"---"},null,null,{"$f":"IF(BL53=\"Treinamento Finalizado\",NOW(),\"---\")","v":"---"},null,null,{"$f":"IF(BO53=\"Treinamento Finalizado\",NOW(),\"---\")","v":"---"},null,null,{"$f":"IF(BR53=\"Treinamento Finalizado\",NOW(),\"---\")","v":"---"},null,null,{"$f":"IF(BU53=\"Treinamento Finalizado\",NOW(),\"---\")","v":"---"}]

{"sheet":"Geral","index":7,"n_rows":63,"n_cols":46,"rows_kept":63,"cut":false,"hidden":false,"merged":[[43,9,43,10],[46,9,46,10],[50,9,50,10],[54,9,54,10],[57,9,57,10],[61,9,61,10],[64,9,64,10],[68,9,68,10],[19,33,19,34],[23,33,23,34],[26,33,26,34],[29,33,29,34],[32,33,32,34],[35,33,35,34],[68,11,68,12],[68,13,68,14],[61,11,61,12],[61,13,61,14],[54,11,54,12],[54,13,54,14],[57,11,57,12],[57,13,57,14],[50,11,50,12],[50,13,50,14],[46,11,46,12],[46,13,46,14],[39,11,39,12],[39,13,39,14],[32,11,32,12],[32,13,32,14],[68,27,68,28],[68,29,68,30],[68,35,68,36],[57,27,57,28],[57,29,57,30],[57,35,57,36],[35,35,35,36],[68,37,68,38],[64,37,64,38],[68,5,68,6],[68,7,68,8],[68,15,68,16],[68,17,68,18],[68,19,68,20],[68,21,68,22],[68,23,68,24],[68,25,68,26],[64,23,64,24],[64,25,64,26],[64,27,64,28],[64,29,64,30],[64,35,64,36],[64,11,64,12],[64,13,64,14],[68,31,68,32],[68,33,68,34],[61,5,61,6],[61,7,61,8],[61,15,61,16],[61,17,61,18],[61,35,61,36],[61,37,61,38],[64,5,64,6],[64,7,64,8],[64,15,64,16],[64,17,64,18],[64,19,64,20],[64,21,64,22],[61,19,61,20],[61,21,61,22],[61,23,61,24],[61,25,61,26],[61,27,61,28],[61,29,61,30],[61,31,61,32],[61,33,61,34],[64,31,64,32],[64,33,64,34],[57,37,57,38],[57,5,57,6],[57,7,57,8],[57,15,57,16],[57,17,57,18],[57,19,57,20],[57,21,57,22],[57,23,57,24],[57,25,57,26],[57,31,57,32],[57,33,57,34],[50,5,50,6],[50,7,50,8],[50,15,50,16],[50,17,50,18],[50,35,50,36],[50,37,50,38],[54,5,54,6],[54,7,54,8],[54,15,54,16],[54,17,54,18],[54,19,54,20],[54,21,54,22],[50,19,50,20],[50,21,50,22],[50,23,50,24],[50,25,50,26],[50,27,50,28],[50,29,50,30],[54,37,54,38],[54,23,54,24],[54,25,54,26],[54,27,54,28],[54,29,54,30],[54,35,54,36],[43,37,43,38],[46,5,46,6],[46,7,46,8],[46,15,46,16],[46,17,46,18],[46,19,46,20],[46,21,46,22],[46,23,46,24],[46,25,46,26],[43,23,43,24],[43,25,43,26],[43,27,43,28],[43,29,43,30],[43,31,43,32],[43,35,43,36],[46,27,46,28],[46,29,46,30],[46,31,46,32],[46,35,46,36],[46,37,46,38],[43,11,43,12],[43,13,43,14],[43,5,43,6],[43,7,43,8],[35,37,35,38],[39,5,39,6],[39,7,39,8],[39,15,39,16],[39,17,39,18],[39,31,39,32],[39,35,39,36],[39,37,39,38],[39,23,39,24],[39,25,39,26],[39,27,39,28],[39,29,39,30],[35,11,35,12],[35,13,35,14],[35,5,35,6],[35,7,35,8],[35,15,35,16],[35,17,35,18],[35,19,35,20],[35,21,35,22],[35,23,35,24],[35,25,35,26],[35,9,35,10],[29,35,29,36],[29,37,29,38],[32,5,32,6],[32,7,32,8],[32,15,32,16],[32,17,32,18],[32,19,32,20],[32,21,32,22],[29,19,29,20],[29,21,29,22],[29,23,29,24],[29,25,29,26],[29,27,29,28],[29,29,29,30],[32,37,32,38],[32,23,32,24],[32,25,32,26],[32,27,32,28],[32,29,32,30],[32,31,32,32],[32,35,32,36],[29,11,29,12],[29,5,29,6],[29,7,29,8],[29,15,29,16],[29,17,29,18],[26,5,26,6],[26,7,26,8],[26,15,26,16],[29,13,29,14],[23,27,23,28],[23,29,23,30],[23,5,23,6],[23,7,23,8],[23,15,23,16],[26,9,26,10],[26,11,26,12],[26,13,26,14],[23,11,23,12],[23,13,23,14],[23,9,23,10],[23,31,23,32],[23,35,23,36],[23,37,23,38],[26,17,26,18],[26,19,26,20],[26,21,26,22],[26,23,26,24],[26,25,26,26],[23,17,23,18],[23,19,23,20],[26,27,26,28],[26,29,26,30],[26,31,26,32],[26,35,26,36],[26,37,26,38],[23,21,23,22],[23,23,23,24],[23,25,23,26],[19,19,19,20],[19,21,19,22],[19,23,19,24],[19,25,19,26],[16,29,16,30],[16,31,16,32],[16,35,16,36],[16,37,16,38],[19,5,19,6],[19,7,19,8],[19,15,19,16],[19,17,19,18],[19,31,19,32],[19,35,19,36],[19,37,19,38],[19,27,19,28],[19,29,19,30],[19,9,19,10],[16,11,16,12],[16,13,16,14],[19,11,19,12],[19,13,19,14],[16,9,16,10],[16,33,16,34],[13,35,13,36],[13,5,13,6],[13,7,13,8],[13,15,13,16],[13,17,13,18],[13,19,13,20],[13,21,13,22],[13,23,13,24],[16,27,16,28],[13,9,13,10],[13,11,13,12],[13,13,13,14],[13,33,13,34],[16,17,16,18],[16,19,16,20],[16,21,16,22],[16,23,16,24],[16,25,16,26],[13,25,13,26],[13,27,13,28],[13,29,13,30],[13,31,13,32],[0,2,4,53],[32,9,32,10],[29,9,29,10],[39,33,39,34],[43,33,43,34],[46,33,46,34],[50,31,50,32],[50,33,50,34],[54,31,54,32],[54,33,54,34],[29,31,29,32],[43,15,43,16],[43,17,43,18],[43,19,43,20],[43,21,43,22],[39,19,39,20],[39,21,39,22],[35,27,35,28],[35,29,35,30],[35,31,35,32],[13,37,13,38],[16,5,16,6],[16,7,16,8],[16,15,16,16]]}
[]
[]
[]
[]
[]
[]
[]
[]
[]
[]
[]
[]
[]
[null,null,null,null,null,"Trein. Finalizado",null,"Trein. Finalizado",null,"Trein. Finalizado",null,"Trein. Finalizado",null,"Trein. Finalizado",null,"Trein. Finalizado",null,"Trein. Finalizado",null,"Trein. Finalizado",null,"Trein. Finalizado",null,"Trein. Finalizado",null,"Trein. Finalizado",null,"Trein. Finalizado",null,"Trein. Finalizado",null,"Trein. Finalizado",null,"Trein. Finalizado",null,"Trein. Finalizado",null,"Trein. Finalizado"]
[]
[]
[null,null,null,null,null,"Trein. Finalizado",null,"Trein. Finalizado",null,"Em Treinamento",null,"Trein. Finalizado",null,"Em Treinamento",null,"Trein. Finalizado",null,"Trein. Finalizado",null,"Trein. Finalizado",null,"Trein. Finalizado",null,"Trein. Finalizado",null,"Trein. Finalizado",null,"Trein. Finalizado",null,"Trein. Finalizado",null,"Trein. Finalizado",null,"Em Treinamento",null,"Trein. Finalizado",null,"Trein. Finalizado"]
[]
[]
[null,null,null,null,null,"Trein. Finalizado",null,"Trein. Finalizado",null,"Trein. Finalizado",null,"Trein. Finalizado",null,"Trein. Finalizado",null,"Trein. Finalizado",null,"Trein. Finalizado",null,"Trein. Finalizado",null,"Trein. Finalizado",null,"Trein. Finalizado",null,"Trein. Finalizado",null,"Trein. Finalizado",null,"Trein. Finalizado",null,"Trein. Finalizado",null,"Trein. Finalizado",null,"Trein. Finalizado",null,"Trein. Finalizado"]
[]
[]
[]
[null,null,null,null,null,"Trein. Finalizado",null,"Em Treinamento",null,"Trein. Finalizado",null,"Trein. Finalizado",null,"Trein. Finalizado",null,"Trein. Finalizado",null,"Trein. Finalizado",null,"Trein. Finalizado",null,"Trein. Finalizado",null,"Trein. Finalizado",null,"Trein. Finalizado",null,"Trein. Finalizado",null,"Trein. Finalizado",null,"Trein. Finalizado",null,"Trein. Finalizado",null,"Trein. Finalizado",null,"Trein. Finalizado"]
[]
[]
[null,null,null,null,null,"Trein. Finalizado",null,"Trein. Finalizado",null,"Trein. Finalizado",null,"Trein. Finalizado",null,"Trein. Finalizado",null,"Trein. Finalizado",null,"Trein. Finalizado",null,"Trein. Finalizado",null,"Trein. Finalizado",null,"Trein. Finalizado",null,"Trein. Finalizado",null,"Trein. Finalizado",null,"Trein. Finalizado",null,"Trein. Finalizado",null,"Trein. Finalizado",null,"Em Treinamento",null,"Trein. Finalizado"]
[]
[]
[null,null,null,null,null,"Trein. Finalizado",null,"Trein. Finalizado",null,null,null,"Trein. Finalizado",null,null,null,"Trein. Finalizado",null,"Trein. Finalizado",null,"Trein. Finalizado",null,"Trein. Finalizado",null,"Trein. Finalizado",null,"Trein. Finalizado",null,"Trein. Finalizado",null,"Trein. Finalizado",null,"Trein. Finalizado",null,null,null,"Trein. Finalizado",null,"Trein. Finalizado"]
[]
[]
[null,null,null,null,null,"Trein. Finalizado",null,"Trein. Finalizado",null,null,null,"Trein. Finalizado",null,null,null,"Trein. Finalizado",null,"Trein. Finalizado",null,"Trein. Finalizado",null,"Trein. Finalizado",null,"Trein. Finalizado",null,"Trein. Finalizado",null,"Trein. Finalizado",null,"Trein. Finalizado",null,"Em Treinamento",null,null,null,"Trein. Finalizado",null,"Trein. Finalizado"]
[]
[]
[null,null,null,null,null,"Trein. Finalizado",null,"Trein. Finalizado",null,null,null,"Trein. Finalizado",null,null,null,"Trein. Finalizado",null,"Trein. Finalizado",null,"Trein. Finalizado",null,"Trein. Finalizado",null,"Trein. Finalizado",null,"Trein. Finalizado",null,"Trein. Finalizado",null,"Trein. Finalizado",null,"Trein. Finalizado",null,null,null,"Trein. Finalizado",null,"Trein. Finalizado"]
[]
[]
[]
[null,null,null,null,null,"Trein. Finalizado",null,"Trein. Finalizado",null,null,null,"Trein. Finalizado",null,null,null,"Trein. Finalizado",null,"Trein. Finalizado",null,"Trein. Finalizado",null,"Trein. Finalizado",null,"Trein. Finalizado",null,"Trein. Finalizado",null,"Trein. Finalizado",null,"Trein. Finalizado",null,"Trein. Finalizado",null,null,null,"Trein. Finalizado",null,"Trein. Finalizado"]
[]
[]
[]
[null,null,null,null,null,"Trein. Finalizado",null,"Trein. Finalizado",null,null,null,"Trein. Finalizado",null,null,null,"Trein. Finalizado",null,"Trein. Finalizado",null,"Trein. Finalizado",null,"Trein. Finalizado",null,"Trein. Finalizado",null,"Trein. Finalizado",null,"Trein. Finalizado",null,"Trein. Finalizado",null,"Trein. Finalizado",null,null,null,"Trein. Finalizado",null,"Trein. Finalizado"]
[]
[]
[null,null,null,null,null,"Em Treinamento",null,"Em Treinamento",null,null,null,"Em Treinamento",null,null,null,"Em Treinamento",null,"Em Treinamento",null,"Em Treinamento",null,"Em Treinamento",null,"Em Treinamento",null,null,null,"Trein. Finalizado",null,"Em Treinamento",null,"Em Treinamento",null,null,null,"Em Treinamento",null,"Em Treinamento"]
[]
[]
[]
[null,null,null,null,null,"Trein. Finalizado",null,"Trein. Finalizado",null,null,null,"Trein. Finalizado",null,null,null,"Trein. Finalizado",null,"Trein. Finalizado",null,"Trein. Finalizado",null,"Trein. Finalizado",null,"Trein. Finalizado",null,"Trein. Finalizado",null,"Trein. Finalizado",null,"Trein. Finalizado",null,"Trein. Finalizado",null,null,null,"Trein. Finalizado",null,"Trein. Finalizado"]
[]
[]
[]
[null,null,null,null,null,"Em Treinamento",null,"Em Treinamento",null,null,null,"Em Treinamento",null,null,null,"Em Treinamento",null,"Em Treinamento",null,"Em Treinamento",null,"Em Treinamento",null,"Em Treinamento",null,"Em Treinamento",null,"Em Treinamento",null,"Em Treinamento",null,"Em Treinamento",null,null,null,"Em Treinamento",null,"Em Treinamento"]
[]
[]
[null,null,null,null,null,"Trein. Finalizado",null,"Trein. Finalizado",null,null,null,"Em Treinamento",null,null,null,"Em Treinamento",null,"Em Treinamento",null,"Trein. Finalizado",null,null,null,"Trein. Finalizado",null,"Em Treinamento",null,"Trein. Finalizado",null,"Em Treinamento",null,"Trein. Finalizado",null,null,null,"Trein. Finalizado",null,"Trein. Finalizado"]
[]
[]
[]
[null,null,null,null,null,"Em Treinamento",null,"Em Treinamento",null,null,null,"Em Treinamento",null,null,null,"Em Treinamento",null,"Em Treinamento",null,"Em Treinamento",null,"Em Treinamento",null,"Em Treinamento",null,"Em Treinamento",null,"Em Treinamento",null,"Em Treinamento",null,"Em Treinamento",null,null,null,"Em Treinamento",null,"Em Treinamento",null,null,null,null,null,null,null,"Trein. Finalizado"]
[null,null,null,null,null,null,null,null,null,null,null,null,null,null,null,null,null,null,null,null,null,null,null,null,null,null,null,null,null,null,null,null,null,null,null,null,null,null,null,null,null,null,null,null,null,"Em Treinamento"]

{"sheet":"hplc","index":8,"n_rows":55,"n_cols":24,"rows_kept":55,"cut":false,"hidden":false,"merged":[[68,5,68,6],[68,7,68,8],[68,11,68,12],[68,13,68,14],[61,15,61,16],[61,17,61,18],[61,19,61,20],[64,5,64,6],[64,7,64,8],[64,11,64,12],[64,13,64,14],[61,5,61,6],[61,7,61,8],[61,11,61,12],[61,13,61,14],[61,9,61,10],[64,9,64,10],[68,9,68,10],[68,15,68,16],[68,17,68,18],[68,19,68,20],[64,15,64,16],[64,17,64,18],[64,19,64,20],[57,5,57,6],[57,7,57,8],[57,11,57,12],[57,13,57,14],[50,15,50,16],[50,17,50,18],[50,19,50,20],[54,5,54,6],[54,7,54,8],[54,11,54,12],[54,13,54,14],[50,5,50,6],[50,7,50,8],[50,11,50,12],[50,13,50,14],[50,9,50,10],[54,9,54,10],[57,9,57,10],[57,15,57,16],[57,17,57,18],[57,19,57,20],[54,15,54,16],[54,17,54,18],[54,19,54,20],[43,15,43,16],[43,17,43,18],[43,19,43,20],[46,5,46,6],[46,7,46,8],[46,11,46,12],[46,13,46,14],[39,15,39,16],[39,17,39,18],[39,19,39,20],[43,5,43,6],[43,7,43,8],[43,11,43,12],[43,13,43,14],[39,5,39,6],[39,7,39,8],[39,11,39,12],[39,13,39,14],[39,9,39,10],[43,9,43,10],[46,9,46,10],[46,15,46,16],[46,17,46,18],[46,19,46,20],[35,15,35,16],[35,17,35,18],[35,19,35,20],[32,15,32,16],[32,17,32,18],[32,19,32,20],[35,5,35,6],[35,7,35,8],[35,9,35,10],[35,11,35,12],[35,13,35,14],[32,5,32,6],[32,7,32,8],[32,9,32,10],[32,11,32,12],[32,13,32,14],[29,15,29,16],[29,17,29,18],[29,19,29,20],[26,15,26,16],[26,17,26,18],[26,19,26,20],[29,5,29,6],[29,7,29,8],[29,9,29,10],[29,11,29,12],[29,13,29,14],[26,5,26,6],[26,7,26,8],[26,9,26,10],[26,11,26,12],[26,13,26,14],[0,2,4,50],[23,15,23,16],[23,17,23,18],[23,19,23,20],[19,15,19,16],[19,17,19,18],[19,19,19,20],[23,5,23,6],[23,7,23,8],[23,9,23,10],[23,11,23,12],[23,13,23,14],[19,5,19,6],[19,7,19,8],[19,9,19,10],[19,11,19,12],[19,13,19,14],[16,15,16,16],[16,17,16,18],[16,19,16,20],[13,15,13,16],[13,17,13,18],[13,19,13,20],[16,5,16,6],[16,7,16,8],[16,9,16,10],[16,11,16,12],[16,13,16,14],[13,5,13,6],[13,7,13,8],[13,9,13,10],[13,11,13,12],[13,13,13,14]]}
[]
[]
[]
[]
[]
[]
[]
[]
[]
[null,null,null,null,null,null,null,null,null,null,null,null,null,null,null,null,null,null,null,null,null,null,null,"Em Treinamento"]
[null,null,null,null,null,null,null,null,null,null,null,null,null,null,null,null,null,null,null,null,null,null,null,"Trein. Finalizado"]
[]
[]
[null,null,null,null,null,"Trein. Finalizado",null,"Trein. Finalizado",null,"Trein. Finalizado",null,"Trein. Finalizado",null,"Trein. Finalizado",null,"Trein. Finalizado",null,"Trein. Finalizado",null,"Trein. Finalizado"]
[]
[]
[null,null,null,null,null,"Trein. Finalizado",null,"Trein. Finalizado",null,"Em Treinamento",null,"Trein. Finalizado",null,"Em Treinamento",null,"Trein. Finalizado",null,"Em Treinamento",null,"Trein. Finalizado"]
[]
[]
[null,null,null,null,null,"Trein. Finalizado",null,"Trein. Finalizado",null,"Trein. Finalizado",null,"Trein. Finalizado",null,"Trein. Finalizado",null,"Trein. Finalizado",null,"Trein. Finalizado",null,"Trein. Finalizado"]
[]
[]
[]
[null,null,null,null,null,"Trein. Finalizado",null,"Em Treinamento",null,"Trein. Finalizado",null,"Trein. Finalizado",null,"Trein. Finalizado",null,"Trein. Finalizado",null,"Trein. Finalizado",null,"Trein. Finalizado"]
[]
[]
[null,null,null,null,null,"Trein. Finalizado",null,"Trein. Finalizado",null,"Trein. Finalizado",null,"Trein. Finalizado",null,"Trein. Finalizado",null,"Trein. Finalizado",null,"Trein. Finalizado",null,"Em Treinamento"]
[]
[]
[null,null,null,null,null,"Trein. Finalizado",null,"Trein. Finalizado",null,null,null,"Trein. Finalizado",null,null,null,"Trein. Finalizado",null,null,null,"Trein. Finalizado"]
[]
[]
[null,null,null,null,null,"Trein. Finalizado",null,"Trein. Finalizado",null,null,null,"Trein. Finalizado",null,null,null,"Em Treinamento",null,null,null,"Trein. Finalizado"]
[]
[]
[null,null,null,null,null,"Trein. Finalizado",null,"Trein. Finalizado",null,null,null,"Trein. Finalizado",null,null,null,"Trein. Finalizado",null,null,null,"Trein. Finalizado"]
[]
[]
[]
[null,null,null,null,null,"Trein. Finalizado",null,"Trein. Finalizado",null,null,null,"Trein. Finalizado",null,null,null,"Trein. Finalizado",null,null,null,"Trein. Finalizado"]
[]
[]
[]
[null,null,null,null,null,"Trein. Finalizado",null,"Trein. Finalizado",null,null,null,"Trein. Finalizado",null,null,null,"Trein. Finalizado",null,null,null,"Trein. Finalizado"]
[]
[]
[null,null,null,null,null,"Em Treinamento",null,"Em Treinamento",null,null,null,"Em Treinamento",null,null,null,"Em Treinamento",null,null,null,"Em Treinamento"]
[]
[]
[]
[null,null,null,null,null,"Trein. Finalizado",null,"Trein. Finalizado",null,null,null,"Trein. Finalizado",null,null,null,"Trein. Finalizado",null,null,null,"Trein. Finalizado"]
[]
[]
[]
[null,null,null,null,null,"Em Treinamento",null,"Em Treinamento",null,null,null,"Em Treinamento",null,null,null,"Em Treinamento",null,null,null,"Em Treinamento"]

{"sheet":"Espectro","index":9,"n_rows":55,"n_cols":16,"rows_kept":55,"cut":false,"hidden":false,"merged":[[68,11,68,12],[68,5,68,6],[68,7,68,8],[68,9,68,10],[61,11,61,12],[64,5,64,6],[64,7,64,8],[64,9,64,10],[64,11,64,12],[61,5,61,6],[61,7,61,8],[61,9,61,10],[54,11,54,12],[57,5,57,6],[57,7,57,8],[57,9,57,10],[57,11,57,12],[54,5,54,6],[54,7,54,8],[54,9,54,10],[46,11,46,12],[50,5,50,6],[50,7,50,8],[50,9,50,10],[50,11,50,12],[46,5,46,6],[46,7,46,8],[46,9,46,10],[39,11,39,12],[43,5,43,6],[43,7,43,8],[43,9,43,10],[43,11,43,12],[39,5,39,6],[39,7,39,8],[39,9,39,10],[32,11,32,12],[35,5,35,6],[35,7,35,8],[35,9,35,10],[35,11,35,12],[32,5,32,6],[32,7,32,8],[32,9,32,10],[26,11,26,12],[29,5,29,6],[29,7,29,8],[29,9,29,10],[29,11,29,12],[26,5,26,6],[26,7,26,8],[26,9,26,10],[19,11,19,12],[23,5,23,6],[23,7,23,8],[23,9,23,10],[23,11,23,12],[19,5,19,6],[19,7,19,8],[19,9,19,10],[0,2,3,33],[13,11,13,12],[16,5,16,6],[16,7,16,8],[16,9,16,10],[16,11,16,12],[13,5,13,6],[13,7,13,8],[13,9,13,10]]}
[]
[]
[]
[]
[]
[]
[]
[]
[]
[null,null,null,null,null,null,null,null,null,null,null,null,null,null,null,"Em Treinamento"]
[null,null,null,null,null,null,null,null,null,null,null,null,null,null,null,"Trein. Finalizado"]
[]
[]
[null,null,null,null,null,"Trein. Finalizado",null,"Trein. Finalizado",null,"Trein. Finalizado",null,"Trein. Finalizado"]
[]
[]
[null,null,null,null,null,"Trein. Finalizado",null,"Trein. Finalizado",null,"Em Treinamento",null,"Trein. Finalizado"]
[]
[]
[null,null,null,null,null,"Trein. Finalizado",null,"Trein. Finalizado",null,"Trein. Finalizado",null,"Trein. Finalizado"]
[]
[]
[]
[null,null,null,null,null,"Trein. Finalizado",null,"Em Treinamento",null,"Trein. Finalizado",null,"Trein. Finalizado"]
[]
[]
[null,null,null,null,null,"Trein. Finalizado",null,"Trein. Finalizado",null,"Trein. Finalizado",null,"Em Treinamento"]
[]
[]
[null,null,null,null,null,"Trein. Finalizado",null,"Trein. Finalizado",null,null,null,"Trein. Finalizado"]
[]
[]
[null,null,null,null,null,"Trein. Finalizado",null,"Trein. Finalizado",null,null,null,"Trein. Finalizado"]
[]
[]
[null,null,null,null,null,"Trein. Finalizado",null,"Trein. Finalizado",null,null,null,"Trein. Finalizado"]
[]
[]
[]
[null,null,null,null,null,"Trein. Finalizado",null,"Trein. Finalizado",null,null,null,"Trein. Finalizado"]
[]
[]
[]
[null,null,null,null,null,"Trein. Finalizado",null,"Trein. Finalizado",null,null,null,"Trein. Finalizado"]
[]
[]
[null,null,null,null,null,"Em Treinamento",null,"Em Treinamento",null,null,null,"Em Treinamento"]
[]
[]
[]
[null,null,null,null,null,"Trein. Finalizado",null,"Trein. Finalizado",null,null,null,"Trein. Finalizado"]
[]
[]
[]
[null,null,null,null,null,"Em Treinamento",null,"Em Treinamento",null,null,null,"Em Treinamento"]

{"sheet":"Karl fischer","index":10,"n_rows":55,"n_cols":16,"rows_kept":55,"cut":false,"hidden":false,"merged":[[68,5,68,6],[68,7,68,8],[68,9,68,10],[68,11,68,12],[64,5,64,6],[64,7,64,8],[64,9,64,10],[64,11,64,12],[43,5,43,6],[43,7,43,8],[43,9,43,10],[43,11,43,12],[54,5,54,6],[54,7,54,8],[54,9,54,10],[54,11,54,12],[46,5,46,6],[46,7,46,8],[46,9,46,10],[46,11,46,12],[50,5,50,6],[50,7,50,8],[50,9,50,10],[50,11,50,12],[35,5,35,6],[35,7,35,8],[35,9,35,10],[35,11,35,12],[39,5,39,6],[39,7,39,8],[39,9,39,10],[39,11,39,12],[29,5,29,6],[29,7,29,8],[29,9,29,10],[29,11,29,12],[32,5,32,6],[32,7,32,8],[32,9,32,10],[32,11,32,12],[23,5,23,6],[23,7,23,8],[23,9,23,10],[23,11,23,12],[26,5,26,6],[26,7,26,8],[26,9,26,10],[26,11,26,12],[16,5,16,6],[16,7,16,8],[16,9,16,10],[16,11,16,12],[19,5,19,6],[19,7,19,8],[19,9,19,10],[19,11,19,12],[0,2,3,62],[13,5,13,6],[13,7,13,8],[13,9,13,10],[13,11,13,12]]}
[]
[]
[]
[]
[]
[]
[]
[]
[]
[null,null,null,null,null,null,null,null,null,null,null,null,null,null,null,"Em Treinamento"]
[null,null,null,null,null,null,null,null,null,null,null,null,null,null,null,"Trein. Finalizado"]
[]
[]
[null,null,null,null,null,"Trein. Finalizado",null,"Trein. Finalizado",null,"Trein. Finalizado",null,"Trein. Finalizado"]
[]
[]
[null,null,null,null,null,"Trein. Finalizado",null,"Trein. Finalizado",null,"Em Treinamento",null,"Trein. Finalizado"]
[]
[]
[null,null,null,null,null,"Trein. Finalizado",null,"Trein. Finalizado",null,"Trein. Finalizado",null,"Trein. Finalizado"]
[]
[]
[]
[null,null,null,null,null,"Trein. Finalizado",null,"Em Treinamento",null,"Trein. Finalizado",null,"Trein. Finalizado"]
[]
[]
[null,null,null,null,null,"Trein. Finalizado",null,"Trein. Finalizado",null,"Trein. Finalizado",null,"Em Treinamento"]
[]
[]
[null,null,null,null,null,"Trein. Finalizado",null,"Trein. Finalizado",null,null,null,"Trein. Finalizado"]
[]
[]
[null,null,null,null,null,"Trein. Finalizado",null,"Trein. Finalizado",null,null,null,"Trein. Finalizado"]
[]
[]
[null,null,null,null,null,"Trein. Finalizado",null,"Trein. Finalizado",null,null,null,"Trein. Finalizado"]
[]
[]
[]
[null,null,null,null,null,"Trein. Finalizado",null,"Trein. Finalizado",null,null,null,"Trein. Finalizado"]
[]
[]
[]
[null,null,null,null,null,"Trein. Finalizado",null,"Trein. Finalizado",null,null,null,"Trein. Finalizado"]
[]
[]
[null,null,null,null,null,"Em Treinamento",null,"Em Treinamento",null,null,null,"Em Treinamento"]
[]
[]
[]
[null,null,null,null,null,"Trein. Finalizado",null,"Trein. Finalizado",null,null,null,"Trein. Finalizado"]
[]
[]
[]
[null,null,null,null,null,"Em Treinamento",null,"Em Treinamento",null,null,null,"Em Treinamento"]

{"sheet":"Agua","index":11,"n_rows":55,"n_cols":16,"rows_kept":55,"cut":false,"hidden":false,"merged":[[50,5,50,6],[50,7,50,8],[50,9,50,10],[50,11,50,12],[68,5,68,6],[68,7,68,8],[68,9,68,10],[68,11,68,12],[54,5,54,6],[54,7,54,8],[54,9,54,10],[54,11,54,12],[64,5,64,6],[64,7,64,8],[64,9,64,10],[64,11,64,12],[43,5,43,6],[43,7,43,8],[43,9,43,10],[43,11,43,12],[46,5,46,6],[46,7,46,8],[46,9,46,10],[46,11,46,12],[35,5,35,6],[35,7,35,8],[35,9,35,10],[35,11,35,12],[39,5,39,6],[39,7,39,8],[39,9,39,10],[39,11,39,12],[29,5,29,6],[29,7,29,8],[29,9,29,10],[29,11,29,12],[32,5,32,6],[32,7,32,8],[32,9,32,10],[32,11,32,12],[23,5,23,6],[23,7,23,8],[23,9,23,10],[23,11,23,12],[26,5,26,6],[26,7,26,8],[26,9,26,10],[26,11,26,12],[16,5,16,6],[16,7,16,8],[16,9,16,10],[16,11,16,12],[19,5,19,6],[19,7,19,8],[19,9,19,10],[19,11,19,12],[0,2,3,53],[13,5,13,6],[13,7,13,8],[13,9,13,10],[13,11,13,12]]}
[]
[]
[]
[]
[]
[]
[]
[]
[]
[null,null,null,null,null,null,null,null,null,null,null,null,null,null,null,"Em Treinamento"]
[null,null,null,null,null,null,null,null,null,null,null,null,null,null,null,"Trein. Finalizado"]
[]
[]
[null,null,null,null,null,"Trein. Finalizado",null,"Trein. Finalizado",null,"Trein. Finalizado",null,"Trein. Finalizado"]
[]
[]
[null,null,null,null,null,"Trein. Finalizado",null,"Trein. Finalizado",null,"Em Treinamento",null,"Trein. Finalizado"]
[]
[]
[null,null,null,null,null,"Trein. Finalizado",null,"Trein. Finalizado",null,"Trein. Finalizado",null,"Trein. Finalizado"]
[]
[]
[]
[null,null,null,null,null,"Trein. Finalizado",null,"Em Treinamento",null,"Trein. Finalizado",null,"Trein. Finalizado"]
[]
[]
[null,null,null,null,null,"Trein. Finalizado",null,"Trein. Finalizado",null,"Trein. Finalizado",null,"Em Treinamento"]
[]
[]
[null,null,null,null,null,"Trein. Finalizado",null,"Trein. Finalizado",null,null,null,"Trein. Finalizado"]
[]
[]
[null,null,null,null,null,"Trein. Finalizado",null,"Trein. Finalizado",null,null,null,"Trein. Finalizado"]
[]
[]
[null,null,null,null,null,"Trein. Finalizado",null,"Trein. Finalizado",null,null,null,"Trein. Finalizado"]
[]
[]
[]
[null,null,null,null,null,"Trein. Finalizado",null,"Trein. Finalizado",null,null,null,"Trein. Finalizado"]
[]
[]
[]
[null,null,null,null,null,"Trein. Finalizado",null,"Trein. Finalizado",null,null,null,"Trein. Finalizado"]
[]
[]
[null,null,null,null,null,"Em Treinamento",null,"Em Treinamento",null,null,null,"Em Treinamento"]
[]
[]
[]
[null,null,null,null,null,"Trein. Finalizado",null,"Trein. Finalizado",null,null,null,"Trein. Finalizado"]
[]
[]
[]
[null,null,null,null,null,"Em Treinamento",null,"Em Treinamento",null,null,null,"Em Treinamento"]

{"sheet":"Titulação","index":12,"n_rows":55,"n_cols":16,"rows_kept":55,"cut":false,"hidden":false,"merged":[[50,5,50,6],[50,7,50,8],[50,9,50,10],[50,11,50,12],[68,5,68,6],[68,7,68,8],[68,9,68,10],[68,11,68,12],[54,5,54,6],[54,7,54,8],[54,9,54,10],[54,11,54,12],[64,5,64,6],[64,7,64,8],[64,9,64,10],[64,11,64,12],[43,5,43,6],[43,7,43,8],[43,9,43,10],[43,11,43,12],[46,5,46,6],[46,7,46,8],[46,9,46,10],[46,11,46,12],[35,5,35,6],[35,7,35,8],[35,9,35,10],[35,11,35,12],[39,5,39,6],[39,7,39,8],[39,9,39,10],[39,11,39,12],[29,5,29,6],[29,7,29,8],[29,9,29,10],[29,11,29,12],[32,5,32,6],[32,7,32,8],[32,9,32,10],[32,11,32,12],[23,5,23,6],[23,7,23,8],[23,9,23,10],[23,11,23,12],[26,5,26,6],[26,7,26,8],[26,9,26,10],[26,11,26,12],[16,5,16,6],[16,7,16,8],[16,9,16,10],[16,11,16,12],[19,5,19,6],[19,7,19,8],[19,9,19,10],[19,11,19,12],[0,2,3,65],[13,5,13,6],[13,7,13,8],[13,9,13,10],[13,11,13,12]]}
[]
[]
[]
[]
[]
[]
[]
[]
[]
[null,null,null,null,null,null,null,null,null,null,null,null,null,null,null,"Em Treinamento"]
[null,null,null,null,null,null,null,null,null,null,null,null,null,null,null,"Trein. Finalizado"]
[]
[]
[null,null,null,null,null,"Trein. Finalizado",null,"Trein. Finalizado",null,"Trein. Finalizado",null,"Trein. Finalizado"]
[]
[]
[null,null,null,null,null,"Trein. Finalizado",null,"Trein. Finalizado",null,"Em Treinamento",null,"Trein. Finalizado"]
[]
[]
[null,null,null,null,null,"Trein. Finalizado",null,"Trein. Finalizado",null,"Trein. Finalizado",null,"Trein. Finalizado"]
[]
[]
[]
[null,null,null,null,null,"Trein. Finalizado",null,"Em Treinamento",null,"Trein. Finalizado",null,"Trein. Finalizado"]
[]
[]
[null,null,null,null,null,"Trein. Finalizado",null,"Trein. Finalizado",null,"Trein. Finalizado",null,"Em Treinamento"]
[]
[]
[null,null,null,null,null,"Trein. Finalizado",null,"Trein. Finalizado",null,null,null,"Trein. Finalizado"]
[]
[]
[null,null,null,null,null,"Trein. Finalizado",null,"Trein. Finalizado",null,null,null,"Trein. Finalizado"]
[]
[]
[null,null,null,null,null,"Trein. Finalizado",null,"Trein. Finalizado",null,null,null,"Trein. Finalizado"]
[]
[]
[]
[null,null,null,null,null,"Trein. Finalizado",null,"Trein. Finalizado",null,null,null,"Trein. Finalizado"]
[]
[]
[]
[null,null,null,null,null,"Trein. Finalizado",null,"Trein. Finalizado",null,null,null,"Trein. Finalizado"]
[]
[]
[null,null,null,null,null,"Em Treinamento",null,"Em Treinamento",null,null,null,"Em Treinamento"]
[]
[]
[]
[null,null,null,null,null,"Trein. Finalizado",null,"Trein. Finalizado",null,null,null,"Trein. Finalizado"]
[]
[]
[]
[null,null,null,null,null,"Em Treinamento",null,"Em Treinamento",null,null,null,"Em Treinamento"]

{"sheet":"Peso Medio","index":13,"n_rows":55,"n_cols":16,"rows_kept":55,"cut":false,"hidden":false,"merged":[[50,5,50,6],[50,7,50,8],[50,9,50,10],[50,11,50,12],[68,5,68,6],[68,7,68,8],[68,9,68,10],[68,11,68,12],[54,5,54,6],[54,7,54,8],[54,9,54,10],[54,11,54,12],[64,5,64,6],[64,7,64,8],[64,9,64,10],[64,11,64,12],[43,5,43,6],[43,7,43,8],[43,9,43,10],[43,11,43,12],[46,5,46,6],[46,7,46,8],[46,9,46,10],[46,11,46,12],[35,5,35,6],[35,7,35,8],[35,9,35,10],[35,11,35,12],[39,5,39,6],[39,7,39,8],[39,9,39,10],[39,11,39,12],[29,5,29,6],[29,7,29,8],[29,9,29,10],[29,11,29,12],[32,5,32,6],[32,7,32,8],[32,9,32,10],[32,11,32,12],[23,5,23,6],[23,7,23,8],[23,9,23,10],[23,11,23,12],[26,5,26,6],[26,7,26,8],[26,9,26,10],[26,11,26,12],[16,5,16,6],[16,7,16,8],[16,9,16,10],[16,11,16,12],[19,5,19,6],[19,7,19,8],[19,9,19,10],[19,11,19,12],[0,2,3,46],[13,5,13,6],[13,7,13,8],[13,9,13,10],[13,11,13,12]]}
[]
[]
[]
[]
[]
[]
[]
[]
[]
[null,null,null,null,null,null,null,null,null,null,null,null,null,null,null,"Em Treinamento"]
[null,null,null,null,null,null,null,null,null,null,null,null,null,null,null,"Trein. Finalizado"]
[]
[]
[null,null,null,null,null,"Trein. Finalizado",null,"Trein. Finalizado",null,"Trein. Finalizado",null,"Trein. Finalizado"]
[]
[]
[null,null,null,null,null,"Trein. Finalizado",null,"Trein. Finalizado",null,"Em Treinamento",null,"Trein. Finalizado"]
[]
[]
[null,null,null,null,null,"Trein. Finalizado",null,"Trein. Finalizado",null,"Trein. Finalizado",null,"Trein. Finalizado"]
[]
[]
[]
[null,null,null,null,null,"Trein. Finalizado",null,"Em Treinamento",null,"Trein. Finalizado",null,"Trein. Finalizado"]
[]
[]
[null,null,null,null,null,"Trein. Finalizado",null,"Trein. Finalizado",null,"Trein. Finalizado",null,"Em Treinamento"]
[]
[]
[null,null,null,null,null,"Trein. Finalizado",null,"Trein. Finalizado",null,null,null,"Trein. Finalizado"]
[]
[]
[null,null,null,null,null,"Trein. Finalizado",null,"Trein. Finalizado",null,null,null,"Trein. Finalizado"]
[]
[]
[null,null,null,null,null,"Trein. Finalizado",null,"Trein. Finalizado",null,null,null,"Trein. Finalizado"]
[]
[]
[]
[null,null,null,null,null,"Trein. Finalizado",null,"Trein. Finalizado",null,null,null,"Trein. Finalizado"]
[]
[]
[]
[null,null,null,null,null,"Trein. Finalizado",null,"Trein. Finalizado",null,null,null,"Trein. Finalizado"]
[]
[]
[null,null,null,null,null,"Em Treinamento",null,"Em Treinamento",null,null,null,"Em Treinamento"]
[]
[]
[]
[null,null,null,null,null,"Trein. Finalizado",null,"Trein. Finalizado",null,null,null,"Trein. Finalizado"]
[]
[]
[]
[null,null,null,null,null,"Em Treinamento",null,"Em Treinamento",null,null,null,"Em Treinamento"]

{"sheet":"Validação ","index":14,"n_rows":55,"n_cols":20,"rows_kept":55,"cut":false,"hidden":false,"merged":[[68,5,68,6],[68,7,68,8],[68,9,68,10],[68,11,68,12],[68,13,68,14],[68,15,68,16],[64,5,64,6],[64,7,64,8],[64,9,64,10],[64,11,64,12],[64,13,64,14],[64,15,64,16],[61,5,61,6],[61,7,61,8],[61,9,61,10],[61,11,61,12],[61,13,61,14],[61,15,61,16],[57,5,57,6],[57,7,57,8],[57,9,57,10],[57,11,57,12],[57,13,57,14],[57,15,57,16],[54,5,54,6],[54,7,54,8],[54,9,54,10],[54,11,54,12],[54,13,54,14],[54,15,54,16],[50,5,50,6],[50,7,50,8],[50,9,50,10],[50,11,50,12],[50,13,50,14],[50,15,50,16],[46,5,46,6],[46,7,46,8],[46,9,46,10],[46,11,46,12],[46,13,46,14],[46,15,46,16],[43,5,43,6],[43,7,43,8],[43,9,43,10],[43,11,43,12],[43,13,43,14],[43,15,43,16],[39,5,39,6],[39,7,39,8],[39,9,39,10],[39,11,39,12],[39,13,39,14],[39,15,39,16],[35,5,35,6],[35,7,35,8],[35,9,35,10],[35,11,35,12],[35,13,35,14],[35,15,35,16],[32,5,32,6],[32,7,32,8],[32,9,32,10],[32,11,32,12],[32,13,32,14],[32,15,32,16],[29,5,29,6],[29,7,29,8],[29,9,29,10],[29,11,29,12],[29,13,29,14],[29,15,29,16],[26,5,26,6],[26,7,26,8],[26,9,26,10],[26,11,26,12],[26,13,26,14],[26,15,26,16],[23,5,23,6],[23,7,23,8],[23,9,23,10],[23,11,23,12],[23,13,23,14],[23,15,23,16],[13,5,13,6],[13,7,13,8],[13,9,13,10],[13,11,13,12],[13,13,13,14],[13,15,13,16],[0,2,3,62],[19,5,19,6],[19,7,19,8],[19,9,19,10],[19,11,19,12],[19,13,19,14],[19,15,19,16],[16,5,16,6],[16,7,16,8],[16,9,16,10],[16,11,16,12],[16,13,16,14],[16,15,16,16]]}
[]
[]
[]
[]
[]
[]
[]
[]
[]
[null,null,null,null,null,null,null,null,null,null,null,null,null,null,null,null,null,null,null,"Em Treinamento"]
[null,null,null,null,null,null,null,null,null,null,null,null,null,null,null,null,null,null,null,"Trein. Finalizado"]
[]
[]
[null,null,null,null,null,"Trein. Finalizado",null,"Trein. Finalizado",null,"Trein. Finalizado",null,"Trein. Finalizado",null,"Trein. Finalizado",null,"Trein. Finalizado"]
[]
[]
[null,null,null,null,null,"Trein. Finalizado",null,"Trein. Finalizado",null,"Em Treinamento",null,"Trein. Finalizado",null,"Em Treinamento",null,"Trein. Finalizado"]
[]
[]
[null,null,null,null,null,"Trein. Finalizado",null,"Trein. Finalizado",null,"Trein. Finalizado",null,"Trein. Finalizado",null,"Trein. Finalizado",null,"Trein. Finalizado"]
[]
[]
[]
[null,null,null,null,null,"Trein. Finalizado",null,"Em Treinamento",null,"Trein. Finalizado",null,"Trein. Finalizado",null,"Trein. Finalizado",null,"Trein. Finalizado"]
[]
[]
[null,null,null,null,null,"Trein. Finalizado",null,"Trein. Finalizado",null,"Trein. Finalizado",null,"Trein. Finalizado",null,"Trein. Finalizado",null,"Em Treinamento"]
[]
[]
[null,null,null,null,null,"Trein. Finalizado",null,"Trein. Finalizado",null,null,null,"Trein. Finalizado",null,null,null,"Trein. Finalizado"]
[]
[]
[null,null,null,null,null,"Trein. Finalizado",null,"Trein. Finalizado",null,null,null,"Em Treinamento",null,null,null,"Trein. Finalizado"]
[]
[]
[null,null,null,null,null,"Trein. Finalizado",null,"Trein. Finalizado",null,null,null,"Trein. Finalizado",null,null,null,"Trein. Finalizado"]
[]
[]
[]
[null,null,null,null,null,"Trein. Finalizado",null,"Trein. Finalizado",null,null,null,"Trein. Finalizado",null,null,null,"Trein. Finalizado"]
[]
[]
[]
[null,null,null,null,null,"Trein. Finalizado",null,"Trein. Finalizado",null,null,null,"Trein. Finalizado",null,null,null,"Trein. Finalizado"]
[]
[]
[null,null,null,null,null,"Em Treinamento",null,"Em Treinamento",null,null,null,"Em Treinamento",null,null,null,"Em Treinamento"]
[]
[]
[]
[null,null,null,null,null,"Trein. Finalizado",null,"Trein. Finalizado",null,null,null,"Trein. Finalizado",null,null,null,"Trein. Finalizado"]
[]
[]
[]
[null,null,null,null,null,"Em Treinamento",null,"Em Treinamento",null,null,null,"Em Treinamento",null,null,null,"Em Treinamento"]

{"sheet":"Teor A.","index":15,"n_rows":55,"n_cols":47,"rows_kept":55,"cut":false,"hidden":false,"merged":[[68,5,68,6],[68,7,68,8],[68,9,68,10],[54,5,54,6],[54,7,54,8],[54,9,54,10],[64,5,64,6],[64,7,64,8],[64,9,64,10],[46,5,46,6],[46,7,46,8],[46,9,46,10],[50,5,50,6],[50,7,50,8],[50,9,50,10],[39,5,39,6],[39,7,39,8],[39,9,39,10],[43,5,43,6],[43,7,43,8],[43,9,43,10],[32,5,32,6],[32,7,32,8],[32,9,32,10],[35,5,35,6],[35,7,35,8],[35,9,35,10],[26,5,26,6],[26,7,26,8],[26,9,26,10],[29,5,29,6],[29,7,29,8],[29,9,29,10],[19,5,19,6],[19,7,19,8],[19,9,19,10],[23,5,23,6],[23,7,23,8],[23,9,23,10],[0,2,3,47],[13,5,13,6],[13,7,13,8],[13,9,13,10],[16,5,16,6],[16,7,16,8],[16,9,16,10]]}
[]
[]
[]
[]
[]
[]
[]
[]
[]
[null,null,null,null,null,null,null,null,null,null,null,null,null,"Em Treinamento"]
[null,null,null,null,null,null,null,null,null,null,null,null,null,"Trein. Finalizado"]
[]
[]
[null,null,null,null,null,"Trein. Finalizado",null,"Trein. Finalizado",null,"Trein. Finalizado"]
[]
[]
[null,null,null,null,null,"Trein. Finalizado",null,"Em Treinamento",null,"Trein. Finalizado"]
[]
[]
[null,null,null,null,null,"Trein. Finalizado",null,"Trein. Finalizado",null,"Trein. Finalizado"]
[]
[]
[]
[null,null,null,null,null,"Trein. Finalizado",null,"Trein. Finalizado",null,"Trein. Finalizado"]
[]
[]
[null,null,null,null,null,"Trein. Finalizado",null,"Trein. Finalizado",null,"Em Treinamento"]
[null,null,null,null,null,null,null,null,null,null,null,null,null,null,null,null,null,null,null,null,null,null,null,null,null,null,null,null,null,null,null,null,null,null,null,null,null,null,null,null,null,null,null,null,null,null,{"$f":"IF('Teor A.'!F36<>\"Trein. Finalizado\",\"Em Treinamento\",IF('Teor A.'!#REF!<>\"Trein. Finalizado\",\"Em Treinamento\",IF('Teor A.'!H36<>\"Trein. Finalizado\",\"Em Treinamento\",IF(Titulação!R36<>\"Trein. Finalizado\",\"Em Treinamento\",\"Treinamento Finalizado\"))))","v":{"$error":"#REF!"}}]
[]
[null,null,null,null,null,"Trein. Finalizado",null,null,null,"Trein. Finalizado"]
[]
[]
[null,null,null,null,null,"Trein. Finalizado",null,null,null,"Trein. Finalizado"]
[]
[]
[null,null,null,null,null,"Trein. Finalizado",null,null,null,"Trein. Finalizado"]
[]
[]
[]
[null,null,null,null,null,"Trein. Finalizado",null,null,null,"Trein. Finalizado"]
[]
[]
[]
[null,null,null,null,null,"Trein. Finalizado",null,null,null,"Trein. Finalizado"]
[]
[]
[null,null,null,null,null,"Em Treinamento",null,null,null,"Em Treinamento"]
[]
[]
[]
[null,null,null,null,null,"Trein. Finalizado",null,null,null,"Trein. Finalizado"]
[]
[]
[]
[null,null,null,null,null,"Em Treinamento",null,null,null,"Em Treinamento"]

{"sheet":"Perfil","index":16,"n_rows":55,"n_cols":18,"rows_kept":55,"cut":false,"hidden":false,"merged":[[54,15,54,16],[68,5,68,6],[68,7,68,8],[68,9,68,10],[68,11,68,12],[68,13,68,14],[64,5,64,6],[64,7,64,8],[64,9,64,10],[64,11,64,12],[64,13,64,14],[61,5,61,6],[61,7,61,8],[61,9,61,10],[61,11,61,12],[61,13,61,14],[57,5,57,6],[57,7,57,8],[57,9,57,10],[57,11,57,12],[57,13,57,14],[54,5,54,6],[54,7,54,8],[54,9,54,10],[54,11,54,12],[54,13,54,14],[50,5,50,6],[50,7,50,8],[50,9,50,10],[50,11,50,12],[50,13,50,14],[46,5,46,6],[46,7,46,8],[46,9,46,10],[46,11,46,12],[46,13,46,14],[43,5,43,6],[43,7,43,8],[43,9,43,10],[43,11,43,12],[43,13,43,14],[39,5,39,6],[39,7,39,8],[39,9,39,10],[39,11,39,12],[39,13,39,14],[35,5,35,6],[35,7,35,8],[35,9,35,10],[35,11,35,12],[35,13,35,14],[32,5,32,6],[32,7,32,8],[32,9,32,10],[32,11,32,12],[32,13,32,14],[29,5,29,6],[29,7,29,8],[29,9,29,10],[29,11,29,12],[29,13,29,14],[26,5,26,6],[26,7,26,8],[26,9,26,10],[26,11,26,12],[26,13,26,14],[23,5,23,6],[23,7,23,8],[23,9,23,10],[23,11,23,12],[23,13,23,14],[19,5,19,6],[19,7,19,8],[19,9,19,10],[19,11,19,12],[19,13,19,14],[16,5,16,6],[16,7,16,8],[16,9,16,10],[16,11,16,12],[16,13,16,14],[0,2,3,61],[13,5,13,6],[13,7,13,8],[13,9,13,10],[13,11,13,12],[13,13,13,14]]}
[]
[]
[]
[]
[]
[]
[]
[]
[]
[null,null,null,null,null,null,null,null,null,null,null,null,null,null,null,null,null,"Em Treinamento"]
[null,null,null,null,null,null,null,null,null,null,null,null,null,null,null,null,null,"Trein. Finalizado"]
[]
[]
[null,null,null,null,null,"Trein. Finalizado",null,"Trein. Finalizado",null,"Trein. Finalizado",null,"Trein. Finalizado",null,"Trein. Finalizado"]
[]
[]
[null,null,null,null,null,"Trein. Finalizado",null,"Trein. Finalizado",null,"Em Treinamento",null,"Trein. Finalizado",null,"Em Treinamento"]
[]
[]
[null,null,null,null,null,"Trein. Finalizado",null,"Trein. Finalizado",null,"Trein. Finalizado",null,"Trein. Finalizado",null,"Trein. Finalizado"]
[]
[]
[]
[null,null,null,null,null,"Trein. Finalizado",null,"Em Treinamento",null,"Trein. Finalizado",null,"Trein. Finalizado",null,"Trein. Finalizado"]
[]
[]
[null,null,null,null,null,"Trein. Finalizado",null,"Trein. Finalizado",null,"Trein. Finalizado",null,"Trein. Finalizado",null,"Trein. Finalizado"]
[]
[]
[null,null,null,null,null,"Trein. Finalizado",null,"Trein. Finalizado",null,null,null,"Trein. Finalizado"]
[]
[]
[null,null,null,null,null,"Trein. Finalizado",null,"Trein. Finalizado",null,null,null,"Trein. Finalizado"]
[]
[]
[null,null,null,null,null,"Trein. Finalizado",null,"Trein. Finalizado",null,null,null,"Trein. Finalizado"]
[]
[]
[]
[null,null,null,null,null,"Trein. Finalizado",null,"Trein. Finalizado",null,null,null,"Trein. Finalizado"]
[]
[]
[]
[null,null,null,null,null,"Trein. Finalizado",null,"Trein. Finalizado",null,null,null,"Trein. Finalizado"]
[]
[]
[null,null,null,null,null,"Em Treinamento",null,"Em Treinamento",null,null,null,"Em Treinamento"]
[]
[]
[]
[null,null,null,null,null,"Trein. Finalizado",null,"Trein. Finalizado",null,null,null,"Trein. Finalizado"]
[]
[]
[]
[null,null,null,null,null,"Em Treinamento",null,"Em Treinamento",null,null,null,"Em Treinamento"]

{"sheet":"Perda S.","index":17,"n_rows":11,"n_cols":18,"rows_kept":11,"cut":false,"hidden":false,"merged":[[16,5,16,6],[16,7,16,8],[16,9,16,10],[16,11,16,12],[16,13,16,14],[13,5,13,6],[13,7,13,8],[13,9,13,10],[13,11,13,12],[13,13,13,14],[23,5,23,6],[23,7,23,8],[23,9,23,10],[23,11,23,12],[23,13,23,14],[19,5,19,6],[19,7,19,8],[19,9,19,10],[19,11,19,12],[19,13,19,14],[29,5,29,6],[29,7,29,8],[29,9,29,10],[29,11,29,12],[29,13,29,14],[26,5,26,6],[26,7,26,8],[26,9,26,10],[26,11,26,12],[26,13,26,14],[35,5,35,6],[35,7,35,8],[35,9,35,10],[35,11,35,12],[35,13,35,14],[32,5,32,6],[32,7,32,8],[32,9,32,10],[32,11,32,12],[32,13,32,14],[43,5,43,6],[43,7,43,8],[43,9,43,10],[43,11,43,12],[43,13,43,14],[39,5,39,6],[39,7,39,8],[39,9,39,10],[39,11,39,12],[39,13,39,14],[50,5,50,6],[50,7,50,8],[50,9,50,10],[50,11,50,12],[50,13,50,14],[46,5,46,6],[46,7,46,8],[46,9,46,10],[46,11,46,12],[46,13,46,14],[64,5,64,6],[64,7,64,8],[64,9,64,10],[64,11,64,12],[64,13,64,14],[0,2,3,36],[61,5,61,6],[61,7,61,8],[61,9,61,10],[61,11,61,12],[61,13,61,14],[54,5,54,6],[54,7,54,8],[54,9,54,10],[54,11,54,12],[54,13,54,14],[57,5,57,6],[57,7,57,8],[57,9,57,10],[57,11,57,12],[57,13,57,14],[68,5,68,6],[68,7,68,8],[68,9,68,10],[68,11,68,12],[68,13,68,14]]}
[]
[]
[]
[]
[]
[]
[]
[]
[]
[null,null,null,null,null,null,null,null,null,null,null,null,null,null,null,null,null,"Em Treinamento"]
[null,null,null,null,null,null,null,null,null,null,null,null,null,null,null,null,null,"Trein. Finalizado"]